Workbook

Sheet MMC
D1: Año | AI1: Código
AI2: 51 | AJ2: =LOOKUP(AI2,AI4:AJ89,AJ4:AJ89) -> 2025
AI3: Nª | AJ3: Año
A4: COTIZACIÓN MENSUAL DEL MODULO MONETARIO CONSUMIDOR (Norma IRAM 34 554) -MMC- | M4: Factor actual de conversión del índice actual: | N4: 0.2687360472 | P4: COTIZACIÓN DIARIA DEL MÓDULO MONETARIO CONSUMIDOR (IRAM 34 554) -MMC- | AA4: AÑO | AB4: =O40 -> 2025 | AI4: 1 | AJ4: 1975
A5: Expresado en la moneda corriente de cada momento y aplicado cada modificación del índice de Precios al Consumidor del INDEC | M5: © Miguel Ángel Martín | P5: Expresado en la moneda corriente de cada momento y aplicado cada modificación del índice de Precios al Consumidor del INDEC | AI5: 2 | AJ5: 1976
A6: AÑO | B6: Moneda | C6: ENERO | D6: FEBRERO | E6: MARZO | F6: ABRIL | G6: MAYO | H6: JUNIO | I6: JULIO | J6: AGOSTO | K6: SETIEMBR | L6: OCTUBRE | M6: NOVIEMBR | N6: DICIEMBRE | P6: =IF(O40<1984,"Pesos Ley 181 188",IF(O40<1986,"Pesos Argentinos",IF(O40<1992,"Australes","Pesos"))) -> Pesos | V6: =IF(O40=1983,"Pesos Argentinos",IF(O40=1985,"Australes","")) ->  | AB6: (C) Miguel Ángel Martín | AI6: 3 | AJ6: 1977
A7: 1,975 | B7: $ ley | C7: 12.5800 | D7: 13.1600 | E7: 14.2200 | F7: 15.6000 | G7: 16.2100 | H7: 19.6400 | I7: 26.4600 | J7: 32.4000 | K7: 35.9100 | L7: 40.8600 | M7: 44.5200 | N7: 53.1700 | P7: DÍA | Q7: ENERO | R7: FEBRERO | S7: MARZO | T7: ABRIL | U7: MAYO | V7: JUNIO | W7: JULIO | X7: AGOSTO | Y7: SETIEMBRE | Z7: OCTUBRE | AA7: NOVIEMBRE | AB7: DICIEMBRE | AI7: 4 | AJ7: 1978
A8: 1,976 | B8: $ ley | C8: 57.9000 | D8: 68.8900 | E8: 94.7800 | F8: 126.9300 | G8: 142.2800 | H8: 146.1600 | I8: 152.3600 | J8: 160.7600 | K8: 177.7300 | L8: 192.7700 | M8: 208.1000 | N8: 237.9600 | P8: 1 | Q8: =Q41*$Q$39 -> 2,069.1142 | R8: =R41*$Q$39 -> 2,114.8584 | S8: 2,165.6585 | T8: 2,246.4169 | U8: 2,308.8883 | V8: 2,343.5528 | W8: 2,381.4982 | X8: 2,426.7853 | Y8: 2,472.3145 | Z8: 2,523.6255 | AA8: 0.0000 | AB8: 0.0000 | AI8: 5 | AJ8: 1979
A9: 1,977 | B9: $ ley | C9: 257.0700 | D9: 278.2900 | E9: 299.2900 | F9: 317.2800 | G9: 337.8900 | H9: 363.7300 | I9: 390.4700 | J9: 434.7400 | K9: 470.8100 | L9: 529.6300 | M9: 577.5000 | N9: 619.7200 | P9: 2 | Q9: =Q8*Q$39 -> 2,070.5742 | R9: =IF(R$40=0,"",R8*R$39) -> 2,116.6520 | S9: =IF(S$40=0,"",S8*S$39) -> 2,168.2177 | T9: =IF(T$40=0,"",T8*T$39) -> 2,248.4718 | U9: =IF(U$40=0,"",U8*U$39) -> 2,309.9985 | V9: =IF(V$40=0,"",V8*V$39) -> 2,344.8079 | W9: =IF(W$40=0,"",W8*W$39) -> 2,382.9458 | X9: =IF(X$40=0,"",X8*X$39) -> 2,428.2408 | Y9: =IF(Y$40=0,"",Y8*Y$39) -> 2,474.0079 | Z9: =IF(Z$40=0,"",Z8*Z$39) ->  | AA9: =IF(AA$40=0,"",AA8*AA$39) ->  | AB9: =IF(AB$40=0,"",AB8*AB$39) ->  | AI9: 6 | AJ9: 1980
A10: 1,978 | B10: $ ley | C10: 702.490 | D10: 746.080 | E10: 816.910 | F10: 907.370 | G10: 986.230 | H10: 1,050.250 | I10: 1,119.550 | J10: 1,206.960 | K10: 1,284.170 | L10: 1,409.390 | M10: 1,533.330 | N10: 1,672.280 | P10: 3 | Q10: =Q9*Q$39 -> 2,072.0353 | R10: 2,118.4472 | S10: 2,170.7800 | T10: 2,250.5285 | U10: 2,311.1092 | V10: 2,346.0636 | W10: 2,384.3943 | X10: 2,429.6972 | Y10: 2,475.7025 | AI10: 7 | AJ10: 1981
A11: 1,979 | B11: $ ley | C11: 1,885.850 | D11: 2,026.210 | E11: 2,183.240 | F11: 2,336.100 | G11: 2,497.770 | H11: 2,739.940 | I11: 2,935.890 | J11: 3,272.050 | K11: 3,496.040 | L11: 3,647.800 | M11: 3,835.270 | N11: 4,009.050 | P11: 4 | Q11: 2,073.4975 | R11: 2,120.2438 | S11: 2,173.3452 | T11: 2,252.5872 | U11: 2,312.2204 | V11: 2,347.3200 | W11: 2,385.8437 | X11: 2,431.1545 | Y11: 2,477.3983 | AI11: 8 | AJ11: 1982
A12: 1,980 | B12: $ ley | C12: 4,298.040 | D12: 4,527.980 | E12: 4,790.350 | F12: 5,086.180 | G12: 5,380.300 | H12: 5,689.110 | I12: 5,949.320 | J12: 6,152.860 | K12: 6,432.410 | L12: 6,922.220 | M12: 7,246.010 | N12: 7,522.320 | P12: 5 | Q12: 2,074.9606 | R12: 2,122.0420 | S12: 2,175.9135 | T12: 2,254.6477 | U12: 2,313.3322 | V12: 2,348.5771 | W12: 2,387.2939 | X12: 2,432.6126 | Y12: 2,479.0952 | AI12: 9 | AJ12: 1983
A13: 1,981 | B13: $ ley | C13: 7,890.960 | D13: 8,220.610 | E13: 8,713.260 | F13: 9,399.890 | G13: 10,108.560 | H13: 11,055.710 | I13: 12,188.770 | J13: 13,154.540 | K13: 14,093.720 | L13: 14,914.260 | M13: 15,989.840 | N13: 17,397.210 | P13: 6 | Q13: 2,076.4248 | R13: 2,123.8417 | S13: 2,178.4849 | T13: 2,256.7102 | U13: 2,314.4445 | V13: 2,349.8348 | W13: 2,388.7450 | X13: 2,434.0716 | Y13: 2,480.7933 | AI13: 10 | AJ13: 1984
A14: 1,982 | B14: $ ley | C14: 19,471.970 | D14: 20,499.980 | E14: 21,468.150 | F14: 22,367.030 | G14: 23,051.590 | H14: 24,871.390 | I14: 28,915.130 | J14: 33,156.080 | K14: 38,822.380 | L14: 43,747.640 | M14: 48,711.290 | N14: 53,885.220 | P14: 7 | Q14: 2,077.8900 | R14: 2,125.6429 | S14: 2,181.0593 | T14: 2,258.7745 | U14: 2,315.5573 | V14: 2,351.0932 | W14: 2,390.1970 | X14: 2,435.5315 | Y14: 2,482.4925 | AI14: 11 | AJ14: 1985
A15: 1,983 | B15: $ ley/$ arg | C15: 62,500.10 | D15: 70,637.61 | E15: 78,595.87 | F15: 86,666.84 | G15: 94,523.18 | H15: 109,480.23 | I15: 12.3114 | J15: 14.4344 | K15: 17.5187 | L15: 20.4921 | M15: 24.4337 | N15: 28.7587 | P15: 8 | Q15: 2,079.3563 | R15: 2,127.4456 | S15: 2,183.6367 | T15: 2,260.8407 | U15: 2,316.6707 | V15: 2,352.3523 | W15: 2,391.6499 | X15: 2,436.9923 | Y15: 2,484.1929 | AI15: 12 | AJ15: 1986
A16: 1,984 | B16: $ arg | C16: 32.3568 | D16: 37.8550 | E16: 45.5236 | F16: 53.9443 | G16: 63.1576 | H16: 74.4702 | I16: 88.0853 | J16: 108.2101 | K16: 138.0192 | L16: 164.6883 | M16: 189.3487 | N16: 226.6091 | P16: 9 | Q16: 2,080.8236 | R16: 2,129.2499 | S16: 2,186.2172 | T16: 2,262.9087 | U16: 2,317.7846 | V16: 2,353.6121 | W16: 2,393.1037 | X16: 2,438.4539 | Y16: 2,485.8945 | AI16: 13 | AJ16: 1987
A17: 1,985 | B17: $ arg/Austral | C17: 283.5550 | D17: 342.1605 | E17: 432.8296 | F17: 560.3652 | G17: 701.1067 | H17: 915.1908 | I17: 0.9719 | J17: 1.0017 | K17: 1.0216 | L17: 1.0415 | M17: 1.0662 | N17: 1.1000 | P17: 10 | Q17: 2,082.2919 | R17: 2,131.0557 | S17: 2,188.8007 | T17: 2,264.9787 | U17: 2,318.8990 | V17: 2,354.8725 | W17: 2,394.5583 | X17: 2,439.9164 | Y17: 2,487.5972 | AI17: 14 | AJ17: 1988
A18: 1,986 | B18: Austral | C18: 1.1333 | D18: 1.1525 | E18: 1.2060 | F18: 1.2631 | G18: 1.3140 | H18: 1.3737 | I18: 1.4666 | J18: 1.5954 | K18: 1.7108 | L18: 1.8143 | M18: 1.9104 | N18: 2.0010 | P18: 11 | Q18: 2,083.7612 | R18: 2,132.8631 | S18: 2,191.3872 | T18: 2,267.0506 | U18: 2,320.0140 | V18: 2,356.1336 | W18: 2,396.0139 | X18: 2,441.3798 | Y18: 2,489.3011 | AI18: 15 | AJ18: 1989
A19: 1,987 | B19: Austral | C19: 2.1522 | D19: 2.2922 | E19: 2.4801 | F19: 2.5636 | G19: 2.6706 | H19: 2.8843 | I19: 3.1762 | J19: 3.6118 | K19: 4.0339 | L19: 4.8224 | M19: 5.3176 | N19: 5.4985 | P19: 12 | Q19: 2,085.2316 | R19: 2,134.6719 | S19: 2,193.9769 | T19: 2,269.1244 | U19: 2,321.1295 | V19: 2,357.3954 | W19: 2,397.4703 | X19: 2,442.8440 | Y19: 2,491.0062 | AI19: 16 | AJ19: 1990
A20: 1,988 | B20: Austral | C20: 5.9985 | D20: 6.6243 | E20: 7.6006 | F20: 8.9104 | G20: 10.3112 | H20: 12.1636 | I20: 15.2825 | J20: 19.5043 | K20: 21.7848 | L20: 23.7440 | M20: 25.1008 | N20: 26.8175 | P20: 13 | Q20: 2,086.7031 | R20: 2,136.4823 | S20: 2,196.5696 | T20: 2,271.2000 | U20: 2,322.2456 | V20: 2,358.6579 | W20: 2,398.9276 | X20: 2,444.3092 | Y20: 2,492.7125 | AI20: 17 | AJ20: 1991
A21: 1,989 | B21: Austral | C21: 29.210 | D21: 32.012 | E21: 37.455 | F21: 49.955 | G21: 89.154 | H21: 191.215 | I21: 567.200 | J21: 781.965 | K21: 855.110 | L21: 902.954 | M21: 961.828 | N21: 1,347.261 | P21: 14 | Q21: 2,088.1755 | R21: 2,138.2943 | S21: 2,199.1653 | T21: 2,273.2776 | U21: 2,323.3622 | V21: 2,359.9210 | W21: 2,400.3858 | X21: 2,445.7752 | Y21: 2,494.4199 | AI21: 18 | AJ21: 1992
A22: 1,990 | B22: Austral | C22: 2,414.344 | D22: 3,900.865 | E22: 7,627.193 | F22: 8,494.604 | G22: 9,650.501 | H22: 10,991.715 | I22: 12,181.618 | J22: 14,049.993 | K22: 16,252.659 | L22: 17,502.560 | M22: 18,584.325 | N22: 19,453.377 | P22: 15 | Q22: 2,089.6491 | R22: 2,140.1077 | S22: 2,201.7641 | T22: 2,275.3570 | U22: 2,324.4793 | V22: 2,361.1849 | W22: 2,401.8449 | X22: 2,447.2421 | Y22: 2,496.1285 | AI22: 19 | AJ22: 1993
A23: 1,991 | B23: Austral | C23: 20,951.032 | D23: 26,605.792 | E23: 29,543.690 | F23: 31,171.705 | G23: 32,045.917 | H23: 33,046.956 | I23: 33,903.204 | J23: 34,344.243 | K23: 34,950.919 | L23: 35,423.036 | M23: 35,560.803 | N23: 35,791.672 | P23: 16 | Q23: 2,091.1236 | R23: 2,141.9228 | S23: 2,204.3660 | T23: 2,277.4384 | U23: 2,325.5970 | V23: 2,362.4494 | W23: 2,403.3048 | X23: 2,448.7099 | Y23: 2,497.8382 | AI23: 20 | AJ23: 1994
A24: 1,992 | B24: Pesos | C24: 3.6881 | D24: 3.7675 | E24: 3.8466 | F24: 3.8961 | G24: 3.9223 | H24: 3.9531 | I24: 4.0214 | J24: 4.0816 | K24: 4.1238 | L24: 4.1760 | M24: 4.1953 | N24: 4.2072 | P24: 17 | Q24: 2,092.5992 | R24: 2,143.7393 | S24: 2,206.9710 | T24: 2,279.5217 | U24: 2,326.7152 | V24: 2,363.7145 | W24: 2,404.7657 | X24: 2,450.1785 | Y24: 2,499.5491 | AI24: 21 | AJ24: 1995
A25: 1,993 | B25: Pesos | C25: 4.2422 | D25: 4.2732 | E25: 4.3053 | F25: 4.3503 | G25: 4.4063 | H25: 4.4380 | I25: 4.4522 | J25: 4.4530 | K25: =303661.1/10000*0.1478507787 -> 4.4897 | L25: 4.5150 | M25: 4.5176 | N25: 4.5170 | P25: 18 | Q25: 2,094.0758 | R25: 2,145.5574 | S25: 2,209.5790 | T25: 2,281.6068 | U25: 2,327.8339 | V25: 2,364.9804 | W25: 2,406.2274 | X25: 2,451.6481 | Y25: 2,501.2612 | AI25: 22 | AJ25: 1996
A26: 1,994 | B26: Pesos | C26: 4.5216 | D26: 4.5214 | E26: 4.5277 | F26: 4.5387 | G26: 4.5545 | H26: 4.5721 | I26: 4.6143 | J26: 4.6238 | K26: 4.6555 | L26: 4.6704 | M26: 4.6809 | N26: 4.6911 | P26: 19 | Q26: 2,095.5535 | R26: 2,147.3770 | S26: 2,212.1901 | T26: 2,283.6939 | U26: 2,328.9532 | V26: 2,366.2469 | W26: 2,407.6901 | X26: 2,453.1185 | Y26: 2,502.9745 | AI26: 23 | AJ26: 1997
A27: 1,995 | B27: Pesos | C27: 4.7496 | D27: 4.7495 | E27: 4.7281 | F27: 4.7497 | G27: 4.7507 | H27: 4.7409 | I27: 4.7602 | J27: 4.7486 | K27: 4.7564 | L27: 4.7726 | M27: 4.7617 | N27: 4.7665 | P27: 20 | Q27: 2,097.0322 | R27: 2,149.1982 | S27: 2,214.8044 | T27: 2,285.7829 | U27: 2,330.0730 | V27: 2,367.5141 | W27: 2,409.1536 | X27: 2,454.5898 | Y27: 2,504.6889 | AI27: 24 | AJ27: 1998
A28: 1,996 | B28: Pesos | C28: 4.7808 | D28: 4.7653 | E28: 4.7396 | F28: 4.7397 | G28: 4.7354 | H28: 4.7356 | I28: 4.7612 | J28: 4.7575 | K28: 4.7662 | L28: 4.7902 | M28: 4.7828 | N28: 4.7691 | P28: 21 | Q28: 2,098.5120 | R28: 2,151.0209 | S28: 2,217.4216 | T28: 2,287.8738 | U28: 2,331.1934 | V28: 2,368.7820 | W28: 2,410.6180 | X28: 2,456.0620 | Y28: 2,506.4046 | AI28: 25 | AJ28: 1999
A29: 1,997 | B29: Pesos | C29: 4.7914 | D29: 4.8098 | E29: 4.7861 | F29: 4.7703 | G29: 4.7663 | H29: 4.7772 | I29: 4.7878 | J29: 4.7957 | K29: 4.7934 | L29: 4.7859 | M29: 4.7766 | N29: 4.7848 | P29: 22 | Q29: 2,099.9928 | R29: 2,152.8452 | S29: 2,220.0420 | T29: 2,289.9666 | U29: 2,332.3142 | V29: 2,370.0506 | W29: 2,412.0833 | X29: 2,457.5351 | Y29: 2,508.1213 | AI29: 26 | AJ29: 2000
A30: 1,998 | B30: Pesos | C30: 4.8149 | D30: 4.8316 | E30: 4.8256 | F30: 4.8261 | G30: 4.8226 | H30: 4.8318 | I30: 4.8469 | J30: 4.8479 | K30: 4.8464 | L30: 4.8287 | M30: 4.8172 | N30: 4.8166 | P30: 23 | Q30: 2,101.4746 | R30: 2,154.6710 | S30: 2,222.6655 | T30: 2,292.0614 | U30: 2,333.4357 | V30: 2,371.3198 | W30: 2,413.5495 | X30: 2,459.0090 | Y30: 2,509.8393 | AI30: 27 | AJ30: 2001
A31: 1,999 | B31: Pesos | C31: 4.8393 | D31: 4.8315 | E31: 4.7952 | F31: 4.7905 | G31: 4.7669 | H31: 4.7667 | I31: 4.7755 | J31: 4.7575 | K31: 4.7481 | L31: 4.7473 | M31: 4.7323 | N31: 4.7294 | P31: 24 | Q31: 2,102.9575 | R31: 2,156.4984 | S31: 2,225.2921 | T31: 2,294.1580 | U31: 2,334.5576 | V31: 2,372.5897 | W31: 2,415.0165 | X31: 2,460.4839 | Y31: 2,511.5585 | AI31: 28 | AJ31: 2002
A32: 2,000 | B32: Pesos | C32: 4.7693 | D32: 4.7695 | E32: 4.7443 | F32: 4.7390 | G32: 4.7203 | H32: 4.7119 | I32: 4.7323 | J32: 4.6982 | K32: 4.6910 | L32: 4.6996 | M32: 4.6982 | N32: 4.6947 | P32: 25 | Q32: 2,104.4415 | R32: 2,158.3273 | S32: 2,227.9218 | T32: 2,296.2566 | U32: 2,335.6801 | V32: 2,373.8603 | W32: 2,416.4845 | X32: 2,461.9596 | Y32: 2,513.2788 | AI32: 29 | AJ32: 2003
A33: 2,001 | B33: Pesos | C33: 4.6756 | D33: 4.6982 | E33: 4.6968 | F33: 4.7261 | G33: 4.7280 | H33: 4.6972 | I33: 4.6968 | J33: 4.6816 | K33: 4.6612 | L33: 4.6612 | M33: 4.6982 | N33: 4.6455 | P33: 26 | Q33: 2,105.9265 | R33: 2,160.1578 | S33: 2,230.5546 | T33: 2,298.3570 | U33: 2,336.8032 | V33: 2,375.1316 | W33: 2,417.9534 | X33: 2,463.4362 | Y33: 2,515.0003 | AI33: 30 | AJ33: 2004
A34: 2,002 | B34: Pesos | C34: 4.7280 | D34: 4.8765 | E34: 5.0911 | F34: 5.5964 | G34: 5.8209 | H34: 6.0316 | I34: 6.2239 | J34: 6.3697 | K34: 6.4555 | L34: 6.4697 | M34: 6.5020 | N34: 6.5151 | P34: 27 | Q34: 2,107.4125 | R34: 2,161.9898 | S34: 2,233.1905 | T34: 2,300.4595 | U34: 2,337.9268 | V34: 2,376.4036 | W34: 2,419.4231 | X34: 2,464.9137 | Y34: 2,516.7229 | AI34: 31 | AJ34: 2005
A35: 2,003 | B35: Pesos | C35: 6.6009 | D35: 6.6383 | E35: 6.6771 | F35: 6.6809 | G35: 6.6548 | H35: 6.6492 | I35: 6.6790 | J35: 6.6804 | K35: 6.6833 | L35: 6.7226 | M35: 6.7391 | N35: 6.7534 | P35: 28 | Q35: 2,108.8996 | R35: 2,163.8234 | S35: 2,235.8296 | T35: 2,302.5638 | U35: 2,339.0509 | V35: 2,377.6762 | W35: 2,420.8938 | X35: 2,466.3921 | Y35: 2,518.4468 | AI35: 32 | AJ35: 2006
A36: 2,004 | B36: Pesos | C36: 6.7818 | D36: 6.7884 | E36: 6.8291 | F36: 6.8874 | G36: 6.9381 | H36: 6.9769 | I36: 7.0091 | J36: 7.0332 | K36: 7.0778 | L36: 7.1057 | M36: 7.1057 | N36: 7.1654 | P36: 29 | Q36: 2,110.3877 | R36: =IF(O41=0,R35*R$39,"") ->  | S36: =IF(S$40=0,"",S35*S$39) -> 2,238.4717 | T36: 2,304.6700 | U36: 2,340.1756 | V36: 2,378.9495 | W36: 2,422.3653 | X36: 2,467.8713 | Y36: 2,520.1718 | AI36: 33 | AJ36: 2007
A37: 2,005 | B37: Pesos | C37: 7.2715 | D37: 7.3406 | E37: 7.4538 | F37: 7.5376 | G37: 7.5352 | H37: 7.5352 | I37: 7.6806 | J37: 7.7143 | K37: 7.8042 | L37: 7.8649 | M37: 7.9601 | N37: 8.0486 | P37: 30 | Q37: 2,111.8769 | S37: 2,241.1170 | T37: 2,306.7782 | U37: 2,341.3008 | V37: 2,380.2236 | W37: 2,423.8378 | X37: 2,469.3515 | Y37: 2,521.8981 | AI37: 34 | AJ37: 2008
A38: 2,006 | B38: Pesos | C38: 8.1514 | D38: 8.1836 | E38: 8.2821 | F38: 8.3626 | G38: 8.4019 | H38: 8.4426 | I38: 8.4947 | J38: 8.5426 | K38: 8.6193 | L38: 8.6932 | M38: 8.7547 | N38: 8.8404 | P38: 31 | Q38: 2,113.3671 | S38: =IF(S$40=0,"",S37*S$39) -> 2,243.7654 | U38: =IF(U$40=0,"",U37*U$39) -> 2,342.4265 | W38: =IF(W$40=0,"",W37*W$39) -> 2,425.3111 | X38: =IF(X$40=0,"",X37*X$39) -> 2,470.8325 | Z38: =IF(Z$40=0,"",Z37*Z$39) ->  | AB38: =IF(AB$40=0,"",AB37*AB$39) ->  | AI38: 35 | AJ38: 2009
A39: 2,007 | B39: Pesos | C39: 8.9418 | D39: 8.9688 | E39: 9.0375 | F39: 9.1047 | G39: 9.1431 | H39: 9.1829 | I39: 9.2288 | J39: 9.2828 | K39: 9.3571 | L39: 9.4211 | M39: 9.5016 | N39: 9.5897 | Q39: =(Q40/Q41)^(1/31) -> 1.0007 | R39: =(R40/R41)^(1/IF(O41=0,29,28)) -> 1.0008 | S39: =(S40/S41)^(1/31) -> 1.0012 | T39: =(T40/T41)^(1/30) -> 1.0009 | U39: =(U40/U41)^(1/31) -> 1.0005 | V39: =(V40/V41)^(1/30) -> 1.0005 | W39: =(W40/W41)^(1/31) -> 1.0006 | X39: 1.0006 | Y39: =(Y40/Y41)^(1/30) -> 1.0007 | Z39: =(Z40/Z41)^(1/31) -> 0.0000 | AA39: =(AA40/AA41)^(1/30) ->  | AB39: =(AB40/AB41)^(1/31) ->  | AI39: 36 | AJ39: 2010
A40: 2,008 | B40: Pesos | C40: 9.6787 | D40: 9.7242 | E40: 9.8340 | F40: 9.9155 | G40: 9.9710 | H40: 10.0345 | I40: 10.0712 | J40: 10.1188 | K40: 10.1832 | L40: 10.2139 | M40: 10.2487 | N40: 10.2834 | O40: =AJ2 -> 2,025 | Q40: =LOOKUP($AJ$2,$A$7:$A$92,C7:C92) -> 2,113.3671 | R40: =LOOKUP($AJ$2,$A$7:$A$92,D7:D92) -> 2,164.1314 | S40: 2,244.8328 | T40: 2,307.2602 | U40: 2,341.9003 | V40: 2,379.8189 | W40: 2,425.0741 | X40: 2,470.5711 | Y40: 2,521.8459 | Z40: 0.0000 | AA40: 0.0000 | AB40: 0.0000 | AI40: 37 | AJ40: 2011
A41: 2,009 | B41: Pesos | C41: 10.3379 | D41: 10.3825 | E41: 10.4489 | F41: 10.4837 | G41: 10.5184 | H41: 10.5630 | I41: 10.6284 | J41: 10.7167 | K41: 10.7960 | L41: 10.8823 | M41: 10.9725 | N41: 11.0746 | O41: =MOD(O40,4) -> 1 | Q41: =IF(O40=1975,12.22,LOOKUP($AJ$2-1,$A$7:$A$92,$N$7:$N$923)) -> 2,067.6551 | R41: =Q38 -> 2,113.3671 | S41: =R40 -> 2,164.1314 | T41: =S40 -> 2,244.8328 | U41: 2,307.2602 | V41: 2,341.9003 | W41: 2,379.8189 | X41: 2,425.0741 | Y41: 2,470.5711 | Z41: 2,521.8459 | AA41: 0.0000 | AB41: 0.0000 | AI41: 38 | AJ41: 2012
A42: 2,010 | B42: Pesos | C42: 11.1896 | D42: 11.3285 | E42: 11.4583 | F42: 11.5535 | G42: 11.6398 | H42: 11.7251 | I42: 11.8193 | J42: 11.9065 | K42: 11.9928 | L42: 12.1822 | M42: 12.1822 | N42: 12.2843 | AI42: 39 | AJ42: 2013
A43: 2,011 | B43: Pesos | C43: 12.3735 | D43: 12.4648 | E43: 12.5699 | F43: 12.6750 | G43: 12.7682 | H43: 12.8594 | I43: 12.9615 | J43: 13.0696 | K43: 13.1787 | L43: 13.2620 | M43: 13.3403 | N43: 13.4523 | AI43: 40 | AJ43: 2014
A44: 2,012 | B44: Pesos | C44: 13.5753 | D44: 13.6754 | E44: 13.8034 | F44: 13.9184 | G44: 14.0314 | H44: 14.1326 | I44: 14.2446 | J44: 14.3715 | K44: 14.4984 | L44: 14.6204 | M44: 14.7572 | N44: 14.9109 | AI44: 41 | AJ44: 2015
A45: 2,013 | B45: Pesos | C45: 15.0805 | D45: 15.1548 | E45: 15.2649 | F45: 15.3760 | G45: 15.4820 | H45: 15.6110 | I45: 15.7557 | J45: 15.8876 | K45: 16.0195 | L45: 16.1623 | M45: 16.3120 | N45: 16.5430 | AI45: 42 | AJ45: 2016
A46: 2,014 | B46: Pesos | C46: 17.1466 | D46: 17.7325 | E46: 18.1928 | F46: 18.5179 | G46: 18.7835 | H46: 19.0266 | I46: 19.2986 | J46: 19.5561 | K46: 19.8249 | L46: 20.0628 | M46: 20.3035 | N46: 20.5066 | AI46: 43 | AJ46: 2017
A47: 2,015 | B47: Pesos | C47: 20.7116 | D47: 18.6274 | E47: 18.8736 | F47: 19.0893 | G47: 19.2857 | H47: 19.5086 | I47: 19.7315 | J47: 19.9633 | K47: 20.1983 | L47: 20.4220 | M47: 20.8210 | N47: 21.6366 | AI47: 44 | AJ47: 2018
A48: 2,016 | B48: Pesos | C48: 22.5318 | D48: 22.8591 | E48: 23.2390 | F48: 23.7893 | G48: 24.7885 | H48: 25.5498 | I48: 26.0731 | J48: 26.1207 | K48: 26.4300 | L48: 27.0485 | M48: 27.4767 | N48: 27.8097 | AI48: 45 | AJ48: 2019
A49: 2,017 | B49: Pesos | C49: 28.5884 | D49: 28.6440 | E49: 29.4227 | F49: 30.2292 | G49: 30.6742 | H49: 30.9801 | I49: 31.5919 | J49: 32.0090 | K49: 32.6208 | L49: 33.1770 | M49: 33.7054 | N49: 34.7622 | AI49: 46 | AJ49: 2020
A50: 2,018 | B50: Pesos | C50: 35.4018 | D50: 36.2361 | E50: 36.9313 | F50: 37.9285 | G50: 38.7415 | H50: 40.2685 | I50: 41.5433 | J50: 43.1635 | K50: 45.9691 | L50: 48.4515 | M50: 50.0019 | N50: 51.2534 | AI50: 47 | AJ50: 2021
A51: 2,019 | B51: Pesos | C51: 52.7273 | D51: 54.7296 | E51: 57.2881 | F51: 59.2904 | G51: 61.0702 | H51: 62.4607 | I51: 63.7956 | J51: 66.6322 | K51: 70.1084 | L51: 72.3610 | M51: 75.3088 | N51: 78.8128 | AI51: 48 | AJ51: 2022
A52: 2,020 | B52: Pesos | C52: 79.6749 | D52: 82.2334 | E52: 84.0411 | F52: 85.2091 | G52: 83.3443 | H52: 85.1779 | I52: 86.7962 | J52: 89.1397 | K52: 93.1439 | L52: 97.5512 | M52: 97.6587 | N52: 101.3404 | AI52: 49 | AJ52: 2023
A53: 2,021 | B53: Pesos | C53: 104.6458 | D53: 108.3409 | E53: 114.0785 | F53: 121.9255 | G53: 122.7586 | H53: 126.5209 | I53: 133.8574 | J53: 133.8037 | K53: 138.9365 | L53: 144.1769 | M53: 147.4555 | N53: 153.4483 | AI53: 50 | AJ53: 2024
A54: 2,022 | B54: Pesos | C54: 159.4680 | D54: 170.2174 | E54: 181.6924 | F54: 192.6569 | G54: 202.1164 | H54: 208.7273 | I54: 224.0990 | J54: 239.7859 | K54: 259.9484 | L54: 270.7784 | M54: 284.3227 | N54: 299.5063 | AI54: 51 | AJ54: 2025
A55: 2,023 | B55: Pesos | C55: 317.3773 | D55: 338.6074 | E55: 371.1782 | F55: 399.6642 | G55: 433.6325 | H55: 459.4311 | I55: 488.5890 | J55: 549.3771 | K55: 619.4097 | L55: 670.8458 | M55: 756.7876 | N55: 949.5251 | Q55: =M51/G56*3238 -> 149.3974836 | AI55: 52 | AJ55: 2026
A56: 2,024 | B56: Pesos | C56: 1,145.2187 | D56: 1,296.8664 | E56: 1,439.6459 | F56: 1,566.7849 | G56: 1,632.2221 | H56: 1,706.9308 | I56: 1,775.7272 | J56: 1,849.8177 | K56: 1,913.9919 | L56: 1,965.5354 | M56: 2013.209224 | N56: 2067.655147 | AI56: 53 | AJ56: 2027
A57: 2,025 | B57: Pesos | C57: 2,113.3671 | D57: 2,164.1314 | E57: 2,244.8328 | F57: 2,307.2602 | G57: =8714.5*N4 -> 2,341.9003 | H57: 2,379.8189 | I57: =N4*9024 -> 2,425.0741 | J57: 2,470.5711 | K57: 2,521.8459 | AI57: 54 | AJ57: 2028
A58: 2,026 | B58: Pesos | AI58: 55 | AJ58: 2029
A59: 2,027 | B59: Pesos | AI59: 56 | AJ59: 2030
A60: 2,028 | B60: Pesos | AI60: 57 | AJ60: 2031
A61: 2,029 | B61: Pesos | AI61: 58 | AJ61: 2032
A62: 2,030 | B62: Pesos | AI62: 59 | AJ62: 2033
A63: 2,031 | B63: Pesos | AI63: 60 | AJ63: 2034
A64: 2,032 | B64: Pesos | AI64: 61 | AJ64: 2035
A65: 2,033 | B65: Pesos | AI65: 62 | AJ65: 2036
A66: 2,034 | B66: Pesos | AI66: 63 | AJ66: 2037
A67: 2,035 | B67: Pesos | AI67: 64 | AJ67: 2038
A68: 2,036 | B68: Pesos | AI68: 65 | AJ68: 2039
A69: 2,037 | B69: Pesos | AI69: 66 | AJ69: 2040
A70: 2,038 | B70: Pesos | AI70: 67 | AJ70: 2041
A71: 2,039 | B71: Pesos | AI71: 68 | AJ71: 2042
A72: 2,040 | B72: Pesos | AI72: 69 | AJ72: 2043
A73: 2,041 | B73: Pesos | AI73: 70 | AJ73: 2044
A74: 2,042 | B74: Pesos | AI74: 71 | AJ74: 2045
A75: 2,043 | B75: Pesos | AI75: 72 | AJ75: 2046
A76: 2,044 | B76: Pesos | AI76: 73 | AJ76: 2047
A77: 2,045 | B77: Pesos | AI77: 74 | AJ77: 2048
A78: 2,046 | B78: Pesos | AI78: 75 | AJ78: 2049
A79: 2,047 | B79: Pesos | AI79: 76 | AJ79: 2050
A80: 2,048 | B80: Pesos | AI80: 77 | AJ80: 2051
A81: 2,049 | B81: Pesos | AI81: 78 | AJ81: 2052
A82: 2,050 | B82: Pesos | AI82: 79 | AJ82: 2053
A83: 2,051 | B83: Pesos | AI83: 80 | AJ83: 2054
A84: 2,052 | B84: Pesos | AI84: 81 | AJ84: 2055
A85: 2,053 | B85: Pesos | AI85: 82 | AJ85: 2056
A86: 2,054 | B86: Pesos | AI86: 83 | AJ86: 2057
A87: 2,055 | B87: Pesos | AI87: 84 | AJ87: 2058
A88: 2,056 | B88: Pesos | AI88: 85 | AJ88: 2059
A89: 2,057 | B89: Pesos | AI89: 86 | AJ89: 2060
A90: 2,058 | B90: Pesos
A91: 2,059 | B91: Pesos
A92: 2,060 | B92: Pesos

Sheet MM
D1: Año | AI1: Código
AI2: 51 | AJ2: =LOOKUP(AI2,AI4:AJ89,AJ4:AJ89) -> 2025
AI3: Nª | AJ3: Año
A4: COTIZACIÓN MENSUAL DEL MODULO MONETARIO (Norma IRAM 34 516) -MM- | M4: Factor actual de conversión del índice actual: | N4: =326175/167.2/10000 -> 0.1950807416 | P4: COTIZACIÓN DIARIA DEL MÓDULO MONETARIO (IRAM 34 516) -MM- | AA4: AÑO | AB4: =O40 -> 2025 | AI4: 1 | AJ4: 1975
A5: Expresado en la moneda corriente de cada momento y aplicado cada modificación del índice de Precios Mayoriostas del INDEC | M5: © Miguel Ángel Martín | P5: Expresado en la moneda corriente de cada momento y aplicado cada modificación del índice de Precios Mayoriostas del INDEC | AI5: 2 | AJ5: 1976
A6: AÑO | B6: Moneda | C6: ENERO | D6: FEBRERO | E6: MARZO | F6: ABRIL | G6: MAYO | H6: JUNIO | I6: JULIO | J6: AGOSTO | K6: SETIEMBR | L6: OCTUBRE | M6: NOVIEMBR | N6: DICIEMBRE | P6: =IF(O40<1984,"Pesos Ley 181 188",IF(O40<1986,"Pesos Argentinos",IF(O40<1992,"Australes","Pesos"))) -> Pesos | V6: =IF(O40=1983,"Pesos Argentinos",IF(O40=1985,"Australes","")) ->  | AB6: (C) Miguel Ángel Martín | AI6: 3 | AJ6: 1977
A7: 1,975 | B7: $ ley | C7: 12.8358 | D7: 14.4468 | E7: 15.2990 | F7: 15.8771 | G7: 16.7076 | H7: 23.9852 | I7: 31.6833 | J7: 36.5210 | K7: 41.2802 | L7: 44.9972 | M7: 49.4709 | N7: 54.1127 | P7: DÍA | Q7: ENERO | R7: FEBRERO | S7: MARZO | T7: ABRIL | U7: MAYO | V7: JUNIO | W7: JULIO | X7: AGOSTO | Y7: SETIEMBRE | Z7: OCTUBRE | AA7: NOVIEMBRE | AB7: DICIEMBRE | AI7: 4 | AJ7: 1978
A8: 1,976 | B8: $ ley | C8: 64.6671 | D8: 83.1663 | E8: 128.1526 | F8: 161.8621 | G8: 169.5561 | H8: 177.5368 | I8: 188.3669 | J8: 203.5192 | K8: 221.4902 | L8: 231.3061 | M8: 247.1465 | N8: 263.1490 | P8: 1 | Q8: =Q41*$Q$39 -> $ 2,157.3373 | R8: =R41*$Q$39 -> $ 2,185.8897 | S8: $ 2,221.7608 | T8: $ 2,254.6849 | U8: $ 2,318.6009 | V8: $ 2,312.3752 | W8: $ 2,350.6273 | X8: $ 2,417.5488 | Y8: $ 2,492.5697 | Z8: 2,974.9358 | AA8: 0.0000 | AB8: $ 0.0000 | AI8: 5 | AJ8: 1979
A9: 1,977 | B9: $ ley | C9: 299.4438 | D9: 320.4373 | E9: 332.9687 | F9: 352.0972 | G9: 374.3017 | H9: 399.1419 | I9: 421.9076 | J9: 474.9601 | K9: 509.5472 | L9: 578.4933 | M9: 624.2174 | N9: 650.3650 | P9: 2 | Q9: =Q8*Q$39 -> $ 2,158.2525 | R9: =IF(R$40=0,"",R8*R$39) -> $ 2,187.1608 | S9: =IF(S$40=0,"",S8*S$39) -> $ 2,222.8153 | T9: $ 2,256.7868 | U9: $ 2,318.3998 | V9: $ 2,313.6402 | W9: $ 2,352.7568 | X9: $ 2,419.9332 | Y9: $ 2,507.3116 | AI9: 6 | AJ9: 1980
A10: 1,978 | B10: $ ley | C10: 716.9781 | D10: 754.8658 | E10: 823.3277 | F10: 898.0558 | G10: 978.7278 | H10: 1,025.6351 | I10: 1,076.0441 | J10: 1,088.3646 | K10: 1,247.0217 | L10: 1,370.8973 | M10: 1,487.6243 | N10: 1,582.3577 | P10: 3 | Q10: =Q9*Q$39 -> $ 2,159.1681 | R10: $ 2,188.4326 | S10: $ 2,223.8703 | T10: $ 2,258.8906 | U10: $ 2,318.1988 | V10: $ 2,314.9059 | W10: $ 2,354.8883 | X10: $ 2,422.3200 | Y10: $ 2,522.1408 | AI10: 7 | AJ10: 1981
A11: 1,979 | B11: $ ley | C11: 1,741.1647 | D11: 1,879.7338 | E11: 2,031.2193 | F11: 2,162.2781 | G11: 2,357.1853 | H11: 2,604.3068 | I11: 2,800.1271 | J11: 3,210.4878 | K11: 3,379.1062 | L11: 3,414.7540 | M11: 3,532.3083 | N11: 3,621.3447 | P11: 4 | Q11: $ 2,160.0841 | R11: $ 2,189.7052 | S11: $ 2,224.9259 | T11: $ 2,260.9964 | U11: $ 2,317.9977 | V11: $ 2,316.1722 | W11: $ 2,357.0217 | X11: $ 2,424.7091 | Y11: $ 2,537.0576 | AI11: 8 | AJ11: 1982
A12: 1,980 | B12: $ ley | C12: 3,776.1223 | D12: 3,932.7588 | E12: 4,084.5047 | F12: 4,242.0733 | G12: 4,469.7401 | H12: 4,797.7150 | I12: 4,938.4990 | J12: 5,082.3557 | K12: 5,228.9539 | L12: 5,512.0643 | M12: 5,657.4376 | N12: 5,702.2091 | P12: 5 | Q12: $ 2,161.0005 | R12: $ 2,190.9785 | S12: $ 2,225.9819 | T12: $ 2,263.1041 | U12: $ 2,317.7967 | V12: $ 2,317.4393 | W12: $ 2,359.1571 | X12: $ 2,427.1006 | Y12: $ 2,552.0627 | AI12: 9 | AJ12: 1983
A13: 1,981 | B13: $ ley | C13: 5,842.4298 | D13: 6,143.9866 | E13: 6,440.2133 | F13: 7,236.3794 | G13: 7,815.9362 | H13: 9,276.9469 | I13: 10,466.6057 | J13: 11,442.5231 | K13: 12,258.0399 | L13: 13,010.2369 | M13: 14,441.1353 | N13: 15,977.4117 | P13: 6 | Q13: $ 2,161.9172 | R13: $ 2,192.2525 | S13: $ 2,227.0384 | T13: $ 2,265.2139 | U13: $ 2,317.5956 | V13: $ 2,318.7070 | W13: $ 2,361.2944 | X13: $ 2,429.4944 | Y13: $ 2,567.1566 | AI13: 10 | AJ13: 1984
A14: 1,982 | B14: $ ley | C14: 18,220.2711 | D14: 19,232.9281 | E14: 20,110.5197 | F14: 21,327.9823 | G14: 23,304.0064 | H14: 26,895.1821 | I14: 34,386.8673 | J14: 39,941.4929 | K14: 47,602.2174 | L14: 52,345.5371 | M14: 59,649.4879 | N14: 65,715.7672 | P14: 7 | Q14: $ 2,162.8343 | R14: $ 2,193.5273 | S14: $ 2,228.0955 | T14: $ 2,267.3256 | U14: $ 2,317.3946 | V14: $ 2,319.9755 | W14: $ 2,363.4336 | X14: $ 2,431.8906 | Y14: $ 2,582.3397 | AI14: 11 | AJ14: 1985
A15: 1,983 | B15: $ ley/$ arg | C15: 75,348.1872 | D15: 85,305.4355 | E15: 94,501.5805 | F15: 100,996.0706 | G15: 111,324.8740 | H15: 12.7453 | I15: 14.2109 | J15: 16.7607 | K15: 20.8546 | L15: 24.3829 | M15: 28.3150 | N15: 33.5980 | P15: 8 | Q15: $ 2,163.7519 | R15: $ 2,194.8028 | S15: $ 2,229.1530 | T15: $ 2,269.4392 | U15: $ 2,317.1937 | V15: $ 2,321.2446 | W15: $ 2,365.5748 | X15: $ 2,434.2892 | Y15: $ 2,597.6125 | AI15: 12 | AJ15: 1986
A16: 1,984 | B16: $ arg | C16: 37.4428 | D16: 43.3972 | E16: 51.3633 | F16: 61.4707 | G16: 73.0288 | H16: 85.1628 | I16: 98.3890 | J16: 119.9410 | K16: 149.6110 | L16: 172.5940 | M16: 197.9230 | N16: 243.8930 | P16: 9 | Q16: $ 2,164.6698 | R16: $ 2,196.0791 | S16: $ 2,230.2110 | T16: $ 2,271.5548 | U16: $ 2,316.9927 | V16: $ 2,322.5145 | W16: $ 2,367.7179 | X16: $ 2,436.6901 | Y16: $ 2,612.9758 | AI16: 13 | AJ16: 1987
A17: 1,985 | B17: $ arg/Austral | C17: 294.4160 | D17: 348.1170 | E17: 444.5360 | F17: 584.6080 | G17: 767.0600 | H17: 1.0913 | I17: 1.0811 | J17: 1.0977 | K17: 1.1042 | L17: 1.1124 | M17: 1.1206 | N17: 1.1315 | P17: 10 | Q17: $ 2,165.5881 | R17: $ 2,197.3561 | S17: $ 2,231.2696 | T17: $ 2,273.6724 | U17: $ 2,316.7917 | V17: $ 2,323.7850 | W17: $ 2,369.8630 | X17: $ 2,439.0934 | Y17: $ 2,628.4299 | AI17: 14 | AJ17: 1988
A18: 1,986 | B18: Austral | C18: 1.1312 | D18: 1.1401 | E18: 1.1562 | F18: 1.1906 | G18: 1.2233 | H18: 1.2791 | I18: 1.3443 | J18: 1.4704 | K18: 1.5700 | L18: 1.6526 | M18: 1.7344 | N18: 1.7866 | P18: 11 | Q18: $ 2,166.5068 | R18: $ 2,198.6339 | S18: $ 2,232.3286 | T18: $ 2,275.7920 | U18: $ 2,316.5908 | V18: $ 2,325.0562 | W18: $ 2,372.0099 | X18: $ 2,441.4991 | Y18: $ 2,643.9754 | AI18: 15 | AJ18: 1989
A19: 1,987 | B19: Austral | C19: 1.8816 | D19: 2.0113 | E19: 2.1693 | F19: 2.2111 | G19: 2.3189 | H19: 2.4743 | I19: 2.7072 | J19: 3.1024 | K19: 3.6179 | L19: 4.7198 | M19: 4.9235 | N19: 5.0355 | P19: 12 | Q19: $ 2,167.4259 | R19: $ 2,199.9124 | S19: $ 2,233.3881 | T19: $ 2,277.9136 | U19: $ 2,316.3899 | V19: $ 2,326.3281 | W19: $ 2,374.1589 | X19: $ 2,443.9071 | Y19: $ 2,659.6128 | AI19: 16 | AJ19: 1990
A20: 1,988 | B20: Austral | C20: 1.8816 | D20: 2.0113 | E20: 2.1693 | F20: 2.2111 | G20: 2.3189 | H20: 2.4743 | I20: 2.7072 | J20: 3.1024 | K20: 3.6179 | L20: 4.7198 | M20: 4.9235 | N20: 5.0355 | P20: 13 | Q20: $ 2,168.3454 | R20: $ 2,201.1916 | S20: $ 2,234.4482 | T20: $ 2,280.0371 | U20: $ 2,316.1890 | V20: $ 2,327.6008 | W20: $ 2,376.3098 | X20: $ 2,446.3175 | Y20: $ 2,675.3427 | AI20: 17 | AJ20: 1991
A21: 1,989 | B21: Austral | C21: 28.6102 | D21: 31.0113 | E21: 36.8995 | F21: 58.2977 | G21: 118.7528 | H21: 276.8529 | I21: 857.5932 | J21: 933.1131 | K21: 956.4792 | L21: 971.0658 | M21: 988.1933 | N21: 1,468.5975 | P21: 14 | Q21: $ 2,169.2652 | R21: $ 2,202.4716 | S21: $ 2,235.5087 | T21: $ 2,282.1626 | U21: $ 2,315.9881 | V21: $ 2,328.8741 | W21: $ 2,378.4626 | X21: $ 2,448.7303 | Y21: $ 2,691.1657 | AI21: 18 | AJ21: 1992
A22: 1,990 | B22: Austral | C22: 2,372.5399 | D22: 4,441.3580 | E22: 7,636.5134 | F22: 8,199.6355 | G22: 8,842.5155 | H22: 9,578.4297 | I22: 9,948.5052 | J22: 11,664.7899 | K22: 12,636.6721 | L22: 12,964.7041 | M22: 13,208.0397 | N22: 13,223.9205 | P22: 15 | Q22: $ 2,170.1855 | R22: $ 2,203.7523 | S22: $ 2,236.5698 | T22: $ 2,284.2901 | U22: $ 2,315.7872 | V22: $ 2,330.1481 | W22: $ 2,380.6174 | X22: $ 2,451.1455 | Y22: $ 2,707.0822 | AI22: 19 | AJ22: 1993
A23: 1,991 | B23: Austral | C23: 14,532.2253 | D23: 20,039.9300 | E23: 20,120.5897 | F23: 20,338.6010 | G23: 20,610.6816 | H23: 20,828.5179 | I23: 20,905.6787 | J23: 20,814.6644 | K23: 20,903.5862 | L23: 21,075.9548 | M23: 20,893.8588 | N23: 20,676.2244 | P23: 16 | Q23: $ 2,171.1061 | R23: $ 2,205.0338 | S23: $ 2,237.6313 | T23: $ 2,286.4196 | U23: $ 2,315.5864 | V23: $ 2,331.4228 | W23: $ 2,382.7741 | X23: $ 2,453.5630 | Y23: $ 2,723.0929 | AI23: 20 | AJ23: 1994
A24: 1,992 | B24: Pesos | C24: 2.0768 | D24: 2.0827 | E24: 2.1166 | F24: 2.1207 | G24: 2.1181 | H24: 2.1356 | I24: 2.1553 | J24: 2.1621 | K24: 2.1840 | L24: 2.1864 | M24: 2.1465 | N24: 2.1302 | P24: 17 | Q24: $ 2,172.0272 | R24: $ 2,206.3160 | S24: $ 2,238.6934 | T24: $ 2,288.5510 | U24: $ 2,315.3856 | V24: $ 2,332.6982 | W24: $ 2,384.9328 | X24: $ 2,455.9829 | Y24: $ 2,739.1982 | AI24: 21 | AJ24: 1995
A25: 1,993 | B25: Pesos | C25: 2.1505 | D25: 2.1697 | E25: 2.1581 | F25: 2.1707 | G25: 2.1809 | H25: 2.1782 | I25: 2.1753 | J25: 2.1847 | K25: 2.1856 | L25: 2.1942 | M25: 2.1613 | N25: 2.1356 | P25: 18 | Q25: $ 2,172.9486 | R25: $ 2,207.5989 | S25: =IF(S$40=0,"",S24*S$39) -> $ 2,239.7560 | T25: $ 2,290.6845 | U25: $ 2,315.1848 | V25: $ 2,333.9743 | W25: $ 2,387.0935 | X25: $ 2,458.4053 | Y25: $ 2,755.3988 | AI25: 22 | AJ25: 1996
A26: 1,994 | B26: Pesos | C26: 2.1490 | D26: 2.1306 | E26: 2.1261 | F26: 2.1379 | G26: 2.1501 | H26: 2.2135 | I26: 2.1986 | J26: 2.2043 | K26: 2.2091 | L26: 2.2262 | M26: 2.2460 | N26: 2.2608 | P26: 19 | Q26: $ 2,173.8704 | R26: $ 2,208.8826 | S26: $ 2,240.8190 | T26: $ 2,292.8199 | U26: $ 2,314.9840 | V26: $ 2,335.2511 | W26: $ 2,389.2561 | X26: $ 2,460.8300 | Y26: $ 2,771.6953 | AI26: 23 | AJ26: 1997
A27: 1,995 | B27: Pesos | C27: 2.2931 | D27: 2.2860 | E27: 2.2899 | F27: 2.3505 | G27: 2.3574 | H27: 2.3604 | I27: 2.3636 | J27: 2.3697 | K27: 2.3916 | L27: 2.3948 | M27: 2.3909 | N27: 2.3958 | P27: 20 | Q27: $ 2,174.7926 | R27: $ 2,210.1671 | S27: $ 2,241.8826 | T27: $ 2,294.9573 | U27: $ 2,314.7832 | V27: $ 2,336.5286 | W27: $ 2,391.4206 | X27: $ 2,463.2571 | Y27: $ 2,788.0881 | AI27: 24 | AJ27: 1998
A28: 1,996 | B28: Pesos | C28: 2.4049 | D28: 2.4025 | E28: 2.4212 | F28: 2.4573 | G28: 2.4628 | H28: 2.4446 | I28: 2.4437 | J28: 2.4339 | K28: 2.4617 | L28: 2.4718 | M28: 2.4485 | N28: 2.4452 | P28: 21 | Q28: $ 2,175.7152 | R28: $ 2,211.4523 | S28: $ 2,242.9467 | T28: $ 2,297.0968 | U28: $ 2,314.5824 | V28: $ 2,337.8068 | W28: $ 2,393.5871 | X28: $ 2,465.6866 | Y28: $ 2,804.5778 | AI28: 25 | AJ28: 1999
A29: 1,997 | B29: Pesos | C29: 2.4579 | D29: 2.4537 | E29: 2.4466 | F29: 2.4359 | G29: 2.4513 | H29: 2.4415 | I29: 2.4308 | J29: 2.4475 | K29: 2.4506 | L29: 2.4254 | M29: 2.4389 | N29: 2.4238 | P29: 22 | Q29: $ 2,176.6382 | R29: $ 2,212.7382 | S29: $ 2,244.0112 | T29: $ 2,299.2382 | U29: $ 2,314.3817 | V29: $ 2,339.0857 | W29: $ 2,395.7556 | X29: $ 2,468.1185 | Y29: $ 2,821.1651 | AI29: 26 | AJ29: 2000
A30: 1,998 | B30: Pesos | C30: 2.4011 | D30: 2.4054 | E30: 2.3989 | F30: 2.4012 | G30: 2.3958 | H30: 2.3934 | I30: 2.3827 | J30: 2.3664 | K30: 2.3451 | L30: 2.3211 | M30: 2.2956 | N30: 2.2696 | P30: 23 | Q30: $ 2,177.5616 | R30: $ 2,214.0249 | S30: $ 2,245.0763 | T30: $ 2,301.3816 | U30: $ 2,314.1810 | V30: $ 2,340.3653 | W30: $ 2,397.9261 | X30: $ 2,470.5527 | Y30: $ 2,837.8505 | AI30: 27 | AJ30: 2001
A31: 1,999 | B31: Pesos | C31: 2.2646 | D31: 2.2467 | E31: 2.2487 | F31: 2.2694 | G31: 2.2685 | H31: 2.2670 | I31: 2.2706 | J31: 2.2748 | K31: 2.2943 | L31: 2.2784 | M31: 2.2699 | N31: 2.2792 | P31: 24 | Q31: $ 2,178.4854 | R31: $ 2,215.3124 | S31: $ 2,246.1419 | T31: $ 2,303.5270 | U31: $ 2,313.9802 | V31: $ 2,341.6456 | W31: $ 2,400.0985 | X31: $ 2,472.9894 | Y31: $ 2,854.6346 | AI31: 28 | AJ31: 2002
A32: 2,000 | B32: Pesos | C32: 2.3100 | D32: 2.3312 | E32: 2.3438 | F32: 2.3153 | G32: 2.3405 | H32: 2.3543 | I32: 2.3503 | J32: 2.3534 | K32: 2.3779 | L32: 2.3841 | M32: 2.3850 | N32: 2.3434 | P32: 25 | Q32: $ 2,179.4096 | R32: $ 2,216.6005 | S32: $ 2,247.2080 | T32: $ 2,305.6744 | U32: $ 2,313.7796 | V32: $ 2,342.9266 | W32: $ 2,402.2729 | X32: $ 2,475.4285 | Y32: $ 2,871.5180 | AI32: 29 | AJ32: 2003
A33: 2,001 | B33: Pesos | C33: 2.3537 | D33: 2.3438 | E33: 2.3153 | F33: 2.3405 | G33: 2.3543 | H33: 2.3503 | I33: 2.3534 | J33: 2.3779 | K33: 2.3841 | L33: 2.3887 | M33: 2.3434 | N33: 2.3415 | P33: 26 | Q33: $ 2,180.3341 | R33: $ 2,217.8895 | S33: $ 2,248.2746 | T33: $ 2,307.8238 | U33: $ 2,313.5789 | V33: $ 2,344.2083 | W33: $ 2,404.4492 | X33: $ 2,477.8700 | Y33: $ 2,888.5012 | AI33: 30 | AJ33: 2004
A34: 2,002 | B34: Pesos | C34: 2.3749 | D34: 2.6410 | E34: 2.9423 | F34: 3.5808 | G34: 4.0277 | H34: 4.3587 | I34: 4.5804 | J34: 4.7949 | K34: 4.9287 | L34: 4.9803 | M34: 4.8957 | N34: 4.8810 | P34: 27 | Q34: $ 2,181.2591 | R34: $ 2,219.1792 | S34: $ 2,249.3417 | T34: $ 2,309.9752 | U34: $ 2,313.3782 | V34: $ 2,345.4907 | W34: $ 2,406.6276 | X34: $ 2,480.3139 | Y34: $ 2,905.5848 | AI34: 31 | AJ34: 2005
A35: 2,003 | B35: Pesos | C35: 4.8816 | D35: 4.8981 | E35: 4.8685 | F35: 4.7702 | G35: 4.7400 | H35: 4.7355 | I35: 4.7358 | J35: 4.8036 | K35: 4.7931 | L35: 4.8187 | M35: 4.8672 | N35: 4.9550 | P35: 28 | Q35: $ 2,182.1844 | R35: $ 2,220.4696 | S35: $ 2,250.4093 | T35: $ 2,312.1286 | U35: $ 2,313.1776 | V35: $ 2,346.7737 | W35: $ 2,408.8079 | X35: $ 2,482.7602 | Y35: $ 2,922.7695 | AI35: 32 | AJ35: 2006
A36: 2,004 | B36: Pesos | C36: 4.9345 | D36: 4.9974 | E36: 5.0315 | F36: 5.0544 | G36: 5.1426 | H36: 5.1375 | I36: 5.1913 | J36: 5.3180 | K36: 5.3300 | L36: 5.3614 | M36: 5.2909 | N36: 5.3434 | P36: 29 | Q36: $ 2,183.1102 | R36: =IF(O41=0,R35*R$39,"") ->  | S36: $ 2,251.4775 | T36: $ 2,314.2840 | U36: $ 2,312.9770 | V36: $ 2,348.0576 | W36: $ 2,410.9901 | X36: $ 2,485.2090 | Y36: $ 2,940.0558 | AI36: 33 | AJ36: 2007
A37: 2,005 | B37: Pesos | C37: 5.2818 | D37: 5.3449 | E37: 5.4592 | F37: 5.5337 | G37: 5.5317 | H37: 5.5317 | I37: 5.6104 | J37: 5.6798 | K37: 5.7776 | L37: 5.8512 | M37: 5.8599 | N37: 5.9145 | P37: 30 | Q37: $ 2,184.0363 | S37: $ 2,252.5461 | T37: $ 2,316.4415 | U37: $ 2,312.7764 | V37: $ 2,349.3421 | W37: $ 2,413.1744 | X37: $ 2,487.6601 | Y37: $ 2,957.4444 | AI37: 34 | AJ37: 2008
A38: 2,006 | B38: Pesos | C38: 5.9841 | D38: 6.0704 | E38: 6.0504 | F38: 6.1389 | G38: 6.1549 | H38: 6.2065 | I38: 6.2507 | J38: 6.2927 | K38: 6.2865 | L38: 6.2901 | M38: 6.3021 | N38: 6.3294 | P38: 31 | Q38: $ 2,184.9628 | S38: =IF(S$40=0,"",S37*S$39) -> $ 2,253.6152 | U38: =IF(U$40=0,"",U37*U$39) -> $ 2,312.5758 | W38: =IF(W$40=0,"",W37*W$39) -> $ 2,415.3606 | X38: =IF(X$40=0,"",X37*X$39) -> $ 2,490.1137 | Z38: =IF(Z$40=0,"",Z37*Z$39) ->  | AB38: =IF(AB$40=0,"",AB37*AB$39) ->  | AI38: 35 | AJ38: 2009
A39: 2,007 | B39: Pesos | C39: 6.3521 | D39: 6.4025 | E39: 6.4401 | F39: 6.5520 | G39: 6.6544 | H39: 6.7861 | I39: 6.9319 | J39: 6.9902 | K39: 7.0586 | L39: 7.1358 | M39: 7.2003 | N39: 7.2469 | Q39: =(Q40/Q41)^(1/31) -> 1.0004 | R39: =(R40/R41)^(1/IF(O41=0,29,28)) -> 1.0006 | S39: =(S40/S41)^(1/31) -> 1.0005 | T39: =(T40/T41)^(1/30) -> 1.0009 | U39: =(U40/U41)^(1/31) -> 0.9999 | V39: =(V40/V41)^(1/30) -> 1.0005 | W39: =(W40/W41)^(1/31) -> 1.0009 | X39: 1.0010 | Y39: =(Y40/Y41)^(1/30) -> 1.0059 | Z39: =(Z40/Z41)^(1/31) -> 0.0000 | AA39: =(AA40/AA41)^(1/30) ->  | AB39: =(AB40/AB41)^(1/31) ->  | AI39: 36 | AJ39: 2010
A40: 2,008 | B40: Pesos | C40: 7.2627 | D40: 7.3732 | E40: 7.4497 | F40: 7.5402 | G40: 7.6338 | H40: 7.7143 | I40: 7.7821 | J40: 7.8348 | K40: 7.8915 | L40: 7.9370 | M40: 8.1160 | N40: 7.9064 | O40: =AJ2 -> 2,025 | Q40: =LOOKUP($AJ$2,$A$7:$A$92,C7:C92) -> 2,184.9628 | R40: =LOOKUP($AJ$2,$A$7:$A$92,D7:D92) -> 2,220.8187 | S40: 2,253.7288 | T40: 2,317.6177 | U40: 2,311.3947 | V40: 2,349.6305 | W40: 2,416.5237 | X40: 2,491.5127 | Y40: 2,973.6743 | Z40: 0.0000 | AA40: 0.0000 | AB40: 0.0000 | AI40: 37 | AJ40: 2011
A41: 2,009 | B41: Pesos | C41: 7.8904 | D41: 7.8995 | E41: 7.9740 | F41: 8.0306 | G41: 8.0593 | H41: 8.1423 | I41: 8.2543 | J41: 8.3366 | K41: 8.4130 | L41: 8.5095 | M41: 8.5867 | N41: 8.6876 | O41: =MOD(O40,4) -> 1 | Q41: =IF(O40=1975,12.073025,LOOKUP($AJ$2-1,$A$7:$A$92,$N$7:$N$923)) -> 2,156.4225 | R41: =Q38 -> 2,184.9628 | S41: =R40 -> 2,220.8187 | T41: =S40 -> 2,253.7288 | U41: 2,317.6177 | V41: 2,311.3947 | W41: 2,349.6305 | X41: 2,416.5237 | Y41: 2,491.5127 | Z41: 2,973.6743 | AA41: 0.0000 | AB41: 0.0000 | AI41: 38 | AJ41: 2012
A42: 2,010 | B42: Pesos | C42: 8.7952 | D42: 8.9400 | E42: 9.0785 | F42: 9.1887 | G42: 9.2946 | H42: 9.3984 | I42: 9.5033 | J42: 9.6047 | K42: 9.7005 | L42: 9.8800 | M42: 9.8797 | N42: 9.9729 | AI42: 39 | AJ42: 2013
A43: 2,011 | B43: Pesos | C43: 10.0665 | D43: 10.1761 | E43: 10.2719 | F43: 10.3704 | G43: 10.4736 | H43: 10.5796 | I43: 10.7032 | J43: 10.8097 | K43: 10.9296 | L43: 11.0294 | M43: 11.1343 | N43: 11.2355 | AI43: 40 | AJ43: 2014
A44: 2,012 | B44: Pesos | C44: 11.3426 | D44: 11.4591 | E44: 11.5756 | F44: 11.7128 | G44: 11.8418 | H44: 11.9558 | I44: 12.0756 | J44: 12.2010 | K44: 12.3287 | L44: 12.4538 | M44: 12.5817 | N44: 12.7062 | AI44: 41 | AJ44: 2015
A45: 2,013 | B45: Pesos | C45: 12.8413 | D45: 12.9745 | E45: 13.0995 | F45: 13.2304 | G45: 13.3936 | H45: 13.5666 | I45: 13.7349 | J45: 13.8898 | K45: 14.0346 | L45: 14.1984 | M45: 14.3745 | N45: 14.5826 | AI45: 42 | AJ45: 2016
A46: 2,014 | B46: Pesos | C46: 14.5884 | D46: 16.0935 | E46: 16.4846 | F46: 16.7681 | G46: 17.0775 | H46: 17.3410 | I46: 17.5718 | J46: 17.8263 | K46: 18.1480 | L46: 18.3664 | M46: 18.5358 | N46: 18.7211 | AI46: 43 | AJ46: 2017
A47: 2,015 | B47: Pesos | C47: 18.7096 | D47: 18.8184 | E47: 18.9811 | F47: 19.1225 | G47: 19.3966 | H47: 19.6587 | I47: 19.9447 | J47: 20.2326 | K47: 20.5007 | L47: 20.6917 | M47: 21.0021 | N47: 21.3171 | AI47: 44 | AJ47: 2018
A48: 2,016 | B48: Pesos | C48: 21.6368 | D48: 21.9614 | E48: 22.4885 | F48: 22.8258 | G48: 23.6475 | H48: 24.3333 | I48: 24.9903 | J48: 25.0903 | K48: 25.1906 | L48: 25.3418 | M48: 25.6205 | N48: 25.8255 | AI48: 45 | AJ48: 2019
A49: 2,017 | B49: Pesos | C49: 26.2129 | D49: 26.6585 | E49: 26.8984 | F49: 27.0329 | G49: 27.2492 | H49: 27.7669 | I49: 28.4611 | J49: 29.0018 | K49: 29.0309 | L49: 29.4373 | M49: 30.1732 | N49: 30.6862 | AI49: 46 | AJ49: 2020
A50: 2,018 | B50: Pesos | C50: 32.6175 | D50: 34.1977 | E50: 34.8609 | F50: 35.4852 | G50: 38.1578 | H50: 40.6353 | I50: 42.5666 | J50: 44.6540 | K50: 51.8134 | L50: 53.3741 | M50: 53.4326 | N50: 54.1154 | AI50: 47 | AJ50: 2021
A51: 2,019 | B51: Pesos | C51: 54.4275 | D51: 56.2613 | E51: 58.5632 | F51: 61.2554 | G51: 64.2791 | H51: 65.3325 | I51: 69.0001 | J51: 72.7261 | K51: 75.7499 | L51: 78.4810 | M51: 82.7190 | N51: 85.7770 | AI51: 48 | AJ51: 2022
A52: 2,020 | B52: Pesos | C52: 87.0645 | D52: 88.0399 | E52: 88.8788 | F52: 87.7278 | G52: 88.0399 | H52: 91.2588 | I52: 94.4971 | J52: 98.3597 | K52: 102.0077 | L52: 106.7677 | M52: 111.2155 | N52: 116.1121 | AI52: 49 | AJ52: 2023
A53: 2,021 | B53: Pesos | C53: 122.5692 | D53: 130.0213 | E53: 135.0739 | F53: 141.5311 | G53: 146.0765 | H53: 151.6363 | I53: 154.0162 | J53: 157.8984 | K53: 162.3072 | L53: 166.9306 | M53: 171.8466 | N53: 175.7287 | AI53: 50 | AJ53: 2024
A54: 2,022 | B54: Pesos | C54: 182.2639 | D54: 190.9060 | E54: 202.9815 | F54: 214.9790 | G54: 226.0791 | H54: 236.9841 | I54: 253.7610 | J54: 274.5176 | K54: 289.5583 | L54: 303.3896 | M54: 322.4880 | N54: 342.2887 | AI54: 51 | AJ54: 2025
A55: 2,023 | B55: Pesos | C55: 364.4693 | D55: 390.0835 | E55: 409.8256 | F55: 440.1802 | G55: 469.2667 | H55: 504.4203 | I55: 539.8079 | J55: 640.8207 | K55: 699.8522 | L55: 752.7581 | M55: 841.8514 | N55: 1,288.1962 | AI55: 52 | AJ55: 2026
A56: 2,024 | B56: Pesos | C56: 1,519.4644 | D56: 1,673.7733 | E56: 1764.4858 | F56: 1,825.3510 | G56: 1,888.9278 | H56: 1,939.1221 | I56: 1,998.8948 | J56: 2,040.2769 | K56: 2,080.5912 | L56: 2,105.2098 | M56: 2,134.4220 | N56: 2156.422518 | AI56: 53 | AJ56: 2027
A57: 2,025 | B57: Pesos | C57: 2,184.9628 | D57: 2,220.8187 | E57: 2,253.7288 | F57: 2,317.6177 | G57: 2,311.3947 | H57: 2,349.6305 | I57: 2,416.5237 | J57: 2,491.5127 | K57: 2,973.6743 | AI57: 54 | AJ57: 2028
A58: 2,026 | B58: Pesos | AI58: 55 | AJ58: 2029
A59: 2,027 | B59: Pesos | AI59: 56 | AJ59: 2030
A60: 2,028 | B60: Pesos | AI60: 57 | AJ60: 2031
A61: 2,029 | B61: Pesos | AI61: 58 | AJ61: 2032
A62: 2,030 | B62: Pesos | AI62: 59 | AJ62: 2033
A63: 2,031 | B63: Pesos | AI63: 60 | AJ63: 2034
A64: 2,032 | B64: Pesos | AI64: 61 | AJ64: 2035
A65: 2,033 | B65: Pesos | AI65: 62 | AJ65: 2036
A66: 2,034 | B66: Pesos | AI66: 63 | AJ66: 2037
A67: 2,035 | B67: Pesos | AI67: 64 | AJ67: 2038
A68: 2,036 | B68: Pesos | AI68: 65 | AJ68: 2039
A69: 2,037 | B69: Pesos | AI69: 66 | AJ69: 2040
A70: 2,038 | B70: Pesos | AI70: 67 | AJ70: 2041
A71: 2,039 | B71: Pesos | AI71: 68 | AJ71: 2042
A72: 2,040 | B72: Pesos | AI72: 69 | AJ72: 2043
A73: 2,041 | B73: Pesos | AI73: 70 | AJ73: 2044
A74: 2,042 | B74: Pesos | AI74: 71 | AJ74: 2045
A75: 2,043 | B75: Pesos | AI75: 72 | AJ75: 2046
A76: 2,044 | B76: Pesos | AI76: 73 | AJ76: 2047
A77: 2,045 | B77: Pesos | AI77: 74 | AJ77: 2048
A78: 2,046 | B78: Pesos | AI78: 75 | AJ78: 2049
A79: 2,047 | B79: Pesos | AI79: 76 | AJ79: 2050
A80: 2,048 | B80: Pesos | AI80: 77 | AJ80: 2051
A81: 2,049 | B81: Pesos | AI81: 78 | AJ81: 2052
A82: 2,050 | B82: Pesos | AI82: 79 | AJ82: 2053
A83: 2,051 | B83: Pesos | AI83: 80 | AJ83: 2054
A84: 2,052 | B84: Pesos | AI84: 81 | AJ84: 2055
A85: 2,053 | B85: Pesos | AI85: 82 | AJ85: 2056
A86: 2,054 | B86: Pesos | AI86: 83 | AJ86: 2057
A87: 2,055 | B87: Pesos | AI87: 84 | AJ87: 2058
A88: 2,056 | B88: Pesos | AI88: 85 | AJ88: 2059
A89: 2,057 | B89: Pesos | AI89: 86 | AJ89: 2060
A90: 2,058 | B90: Pesos
A91: 2,059 | B91: Pesos
A92: 2,060 | B92: Pesos

Sheet MMCABA
D1: Año | AI1: Código
AI2: 51 | AJ2: =LOOKUP(AI2,AI4:AJ89,AJ4:AJ89) -> 2025
AI3: Nª | AJ3: Año
A4: COTIZACIÓN MENSUAL DEL MODULO MONETARIO CONSUMIDOR CABA (Norma IRAM 34 554) -GCBA- | M4: Factor actual de conversión: | N4: =C55/246.41 -> 2.0812 | P4: COTIZACIÓN DIARIA DEL MÓDULO MONETARIO CONSUMIDOR CABA (IRAM 34 554) -MCBA- | AA4: AÑO | AB4: =O40 -> 2025 | AI4: 1 | AJ4: 1975
A5: Expresado en la moneda corriente de cada momento con índice de Precios al Consumidor del INDEC de 1975 a 2008, State Prices de 2009 a 2012 y DGEyC CABA desde 2013. | P5: Expresado en la moneda corriente de cada momento con índice de Precios al Consumidor del INDEC de 1975 a 2008, State Prices de 2009 a 2012 y DGEyC CABA desde 2013. | AI5: 2 | AJ5: 1976
A6: AÑO | B6: Moneda | C6: ENERO | D6: FEBRERO | E6: MARZO | F6: ABRIL | G6: MAYO | H6: JUNIO | I6: JULIO | J6: AGOSTO | K6: SETIEMBR | L6: OCTUBRE | M6: NOVIEMBR | N6: DICIEMBRE | P6: =IF(O40<1984,"Pesos Ley 181 188",IF(O40<1986,"Pesos Argentinos",IF(O40<1992,"Australes","Pesos"))) -> Pesos | V6: =IF(O40=1983,"Pesos Argentinos",IF(O40=1985,"Australes","")) ->  | AB6: (C) Miguel Ángel Martín | AI6: 3 | AJ6: 1977
A7: 1,975 | B7: $ ley | C7: $ 12.5800 | D7: $ 13.1600 | E7: $ 14.2200 | F7: $ 15.6000 | G7: $ 16.2100 | H7: $ 19.6400 | I7: $ 26.4600 | J7: $ 32.4000 | K7: $ 35.9100 | L7: $ 40.8600 | M7: $ 44.5200 | N7: $ 53.1700 | P7: DÍA | Q7: ENERO | R7: FEBRERO | S7: MARZO | T7: ABRIL | U7: MAYO | V7: JUNIO | W7: JULIO | X7: AGOSTO | Y7: SETIEMBRE | Z7: OCTUBRE | AA7: NOVIEMBRE | AB7: DICIEMBRE | AI7: 4 | AJ7: 1978
A8: 1,976 | B8: $ ley | C8: $ 57.9000 | D8: $ 68.8900 | E8: $ 94.7800 | F8: $ 126.9300 | G8: $ 142.2800 | H8: $ 146.1600 | I8: $ 152.3600 | J8: $ 160.7600 | K8: $ 177.7300 | L8: $ 192.7700 | M8: $ 208.1000 | N8: $ 237.9600 | P8: 1 | Q8: =Q41*$Q$39 -> 3,380.2000 | R8: =R41*$Q$39 -> 3,486.3645 | S8: 3,558.0296 | T8: 3,670.7148 | U8: 3,755.7338 | V8: 3,814.7326 | W8: 3,938.3133 | X8: 3,993.3955 | Y8: 4,057.0400 | Z8: 4,146.6215 | AA8: 0.0000 | AB8: 0.0000 | AI8: 5 | AJ8: 1979
A9: 1,977 | B9: $ ley | C9: $ 257.0700 | D9: $ 278.2900 | E9: $ 299.2900 | F9: $ 317.2800 | G9: $ 337.8900 | H9: $ 363.7300 | I9: $ 390.4700 | J9: $ 434.7400 | K9: $ 470.8100 | L9: $ 529.6300 | M9: $ 577.5000 | N9: $ 619.7200 | P9: 2 | Q9: =Q8*Q$39 -> 3,383.5737 | R9: =IF(R$40=0,"",R8*R$39) -> 3,488.8989 | S9: =IF(S$40=0,"",S8*S$39) -> 3,561.6101 | T9: 3,673.5175 | U9: 3,757.6227 | V9: 3,818.7888 | W9: 3,940.0783 | X9: 3,995.4329 | Y9: 4,059.9947 | AI9: 6 | AJ9: 1980
A10: 1,978 | B10: $ ley | C10: $ 702.4900 | D10: $ 746.0800 | E10: $ 816.9100 | F10: $ 907.3700 | G10: $ 986.2300 | H10: $ 1,050.2500 | I10: $ 1,119.5500 | J10: $ 1,206.9600 | K10: $ 1,284.1700 | L10: $ 1,409.3900 | M10: $ 1,533.3300 | N10: $ 1,672.2800 | P10: 3 | Q10: =Q9*Q$39 -> 3,386.9507 | R10: 3,491.4352 | S10: 3,565.1941 | T10: 3,676.3224 | U10: 3,759.5125 | V10: 3,822.8493 | W10: 3,941.8440 | X10: 3,997.4713 | Y10: 4,062.9514 | AI10: 7 | AJ10: 1981
A11: 1,979 | B11: $ ley | C11: $ 1,885.8500 | D11: $ 2,026.2100 | E11: $ 2,183.2400 | F11: $ 2,336.1000 | G11: $ 2,497.7700 | H11: $ 2,739.9400 | I11: $ 2,935.8900 | J11: $ 3,272.0500 | K11: $ 3,496.0400 | L11: $ 3,647.8000 | M11: $ 3,835.2700 | N11: $ 4,009.0500 | P11: 4 | Q11: 3,390.3311 | R11: 3,493.9733 | S11: 3,568.7817 | T11: 3,679.1294 | U11: 3,761.4033 | V11: 3,826.9141 | W11: 3,943.6105 | X11: 3,999.5108 | Y11: 4,065.9104 | AI11: 8 | AJ11: 1982
A12: 1,980 | B12: $ ley | C12: $ 4,298.0400 | D12: $ 4,527.9800 | E12: $ 4,790.3500 | F12: $ 5,086.1800 | G12: $ 5,380.3000 | H12: $ 5,689.1100 | I12: $ 5,949.3200 | J12: $ 6,152.8600 | K12: $ 6,432.4100 | L12: $ 6,922.2200 | M12: $ 7,246.0100 | N12: $ 7,522.3200 | P12: 5 | Q12: 3,393.7149 | R12: 3,496.5133 | S12: 3,572.3730 | T12: 3,681.9385 | U12: 3,763.2950 | V12: 3,830.9833 | W12: 3,945.3778 | X12: 4,001.5513 | Y12: 4,068.8715 | AI12: 9 | AJ12: 1983
A13: 1,981 | B13: $ ley | C13: $ 7,890.9600 | D13: $ 8,220.6100 | E13: $ 8,713.2600 | F13: $ 9,399.8900 | G13: $ 10,108.5600 | H13: $ 11,055.7100 | I13: $ 12,188.7700 | J13: $ 13,154.5400 | K13: $ 14,093.7200 | L13: $ 14,914.2600 | M13: $ 15,989.8400 | N13: $ 17,397.2100 | P13: 6 | Q13: 3,397.1021 | R13: 3,499.0551 | S13: 3,575.9679 | T13: 3,684.7498 | U13: 3,765.1877 | V13: 3,835.0568 | W13: 3,947.1459 | X13: 4,003.5928 | Y13: 4,071.8347 | AI13: 10 | AJ13: 1984
A14: 1,982 | B14: $ ley | C14: $ 19,471.9700 | D14: $ 20,499.9800 | E14: $ 21,468.1500 | F14: $ 22,367.0300 | G14: $ 23,051.5900 | H14: $ 24,871.3900 | I14: $ 28,915.1300 | J14: $ 33,156.0800 | K14: $ 38,822.3800 | L14: $ 43,747.6400 | M14: $ 48,711.2900 | N14: $ 53,885.2200 | P14: 7 | Q14: 3,400.4926 | R14: 3,501.5988 | S14: 3,579.5663 | T14: 3,687.5632 | U14: 3,767.0813 | V14: 3,839.1346 | W14: 3,948.9148 | X14: 4,005.6354 | Y14: 4,074.8001 | AI14: 11 | AJ14: 1985
A15: 1,983 | B15: $ ley/$ arg | C15: $ 62,500.1000 | D15: $ 70,637.6100 | E15: $ 78,595.8700 | F15: $ 86,666.8400 | G15: $ 94,523.1800 | H15: $ 109,480.2300 | I15: $ 12.3114 | J15: $ 14.4344 | K15: $ 17.5187 | L15: $ 20.4921 | M15: $ 24.4337 | N15: $ 28.7587 | P15: 8 | Q15: 3,403.8865 | R15: 3,504.1443 | S15: 3,583.1684 | T15: 3,690.3788 | U15: 3,768.9759 | V15: 3,843.2167 | W15: 3,950.6845 | X15: 4,007.6790 | Y15: 4,077.7677 | AI15: 12 | AJ15: 1986
A16: 1,984 | B16: $ arg | C16: $ 32.3568 | D16: $ 37.8550 | E16: $ 45.5236 | F16: $ 53.9443 | G16: $ 63.1576 | H16: $ 74.4702 | I16: $ 88.0853 | J16: $ 108.2101 | K16: $ 138.0192 | L16: $ 164.6883 | M16: $ 189.3487 | N16: $ 226.6091 | P16: 9 | Q16: 3,407.2838 | R16: 3,506.6917 | S16: 3,586.7742 | T16: 3,693.1965 | U16: 3,770.8714 | V16: 3,847.3032 | W16: 3,952.4549 | X16: 4,009.7237 | Y16: 4,080.7374 | AI16: 13 | AJ16: 1987
A17: 1,985 | B17: $ arg/Austral | C17: $ 283.5550 | D17: $ 342.1605 | E17: $ 432.8296 | F17: $ 560.3652 | G17: $ 701.1067 | H17: $ 915.1908 | I17: $ 0.9719 | J17: $ 1.0017 | K17: $ 1.0216 | L17: $ 1.0415 | M17: $ 1.0662 | N17: $ 1.1000 | P17: 10 | Q17: 3,410.6845 | R17: 3,509.2409 | S17: 3,590.3835 | T17: 3,696.0164 | U17: 3,772.7679 | V17: 3,851.3940 | W17: 3,954.2262 | X17: 4,011.7694 | Y17: 4,083.7093 | AI17: 14 | AJ17: 1988
A18: 1,986 | B18: Austral | C18: $ 1.1333 | D18: $ 1.1525 | E18: $ 1.2060 | F18: $ 1.2631 | G18: $ 1.3140 | H18: $ 1.3737 | I18: $ 1.4666 | J18: $ 1.5954 | K18: $ 1.7108 | L18: $ 1.8143 | M18: $ 1.9104 | N18: $ 2.0010 | P18: 11 | Q18: 3,414.0886 | R18: 3,511.7920 | S18: 3,593.9965 | T18: 3,698.8384 | U18: 3,774.6653 | V18: 3,855.4892 | W18: 3,955.9983 | X18: 4,013.8162 | Y18: 4,086.6834 | AI18: 15 | AJ18: 1989
A19: 1,987 | B19: Austral | C19: $ 2.1522 | D19: $ 2.2922 | E19: $ 2.4801 | F19: $ 2.5636 | G19: $ 2.6706 | H19: $ 2.8843 | I19: $ 3.1762 | J19: $ 3.6118 | K19: $ 4.0339 | L19: $ 4.8224 | M19: $ 5.3176 | N19: $ 5.4985 | P19: 12 | Q19: 3,417.4961 | R19: 3,514.3449 | S19: 3,597.6131 | T19: 3,701.6626 | U19: 3,776.5637 | V19: 3,859.5887 | W19: 3,957.7711 | X19: 4,015.8640 | Y19: 4,089.6596 | AI19: 16 | AJ19: 1990
A20: 1,988 | B20: Austral | C20: $ 5.9985 | D20: $ 6.6243 | E20: $ 7.6006 | F20: $ 8.9104 | G20: $ 10.3112 | H20: $ 12.1636 | I20: $ 15.2825 | J20: $ 19.5043 | K20: $ 21.7848 | L20: $ 23.7440 | M20: $ 25.1008 | N20: $ 26.8175 | P20: 13 | Q20: 3,420.9069 | R20: 3,516.8997 | S20: 3,601.2334 | T20: 3,704.4890 | U20: 3,778.4630 | V20: 3,863.6926 | W20: 3,959.5448 | X20: 4,017.9128 | Y20: 4,092.6380 | AI20: 17 | AJ20: 1991
A21: 1,989 | B21: Austral | C21: $ 29.2102 | D21: $ 32.0118 | E21: $ 37.4554 | F21: $ 49.9553 | G21: $ 89.1540 | H21: $ 191.2154 | I21: $ 567.1999 | J21: $ 781.9650 | K21: $ 855.1098 | L21: $ 902.9543 | M21: $ 961.8285 | N21: $ 1,347.2607 | P21: 14 | Q21: 3,424.3212 | R21: 3,519.4563 | S21: 3,604.8573 | T21: 3,707.3175 | U21: 3,780.3633 | V21: 3,867.8009 | W21: 3,961.3192 | X21: 4,019.9627 | Y21: 4,095.6186 | AI21: 18 | AJ21: 1992
A22: 1,990 | B22: Austral | C22: $ 2,414.3441 | D22: $ 3,900.8654 | E22: $ 7,627.1929 | F22: $ 8,494.6039 | G22: $ 9,650.5012 | H22: $ 10,991.7148 | I22: $ 12,181.6179 | J22: $ 14,049.9934 | K22: $ 16,252.6595 | L22: $ 17,502.5604 | M22: $ 18,584.3254 | N22: $ 19,453.3775 | P22: 15 | Q22: 3,427.7389 | R22: 3,522.0148 | S22: 3,608.4849 | T22: 3,710.1482 | U22: 3,782.2646 | V22: 3,871.9135 | W22: 3,963.0945 | X22: 4,022.0136 | Y22: 4,098.6013 | AI22: 19 | AJ22: 1993
A23: 1,991 | B23: Austral | C23: $ 20,951.0320 | D23: $ 26,605.7920 | E23: $ 29,543.6904 | F23: $ 31,171.7049 | G23: $ 32,045.9170 | H23: $ 33,046.9555 | I23: $ 33,903.2037 | J23: $ 34,344.2426 | K23: $ 34,950.9187 | L23: $ 35,423.0358 | M23: $ 35,560.8032 | N23: $ 35,791.6721 | P23: 16 | Q23: 3,431.1600 | R23: 3,524.5751 | S23: 3,612.1161 | T23: 3,712.9810 | U23: 3,784.1668 | V23: 3,876.0305 | W23: 3,964.8705 | X23: 4,024.0656 | Y23: 4,101.5862 | AI23: 20 | AJ23: 1994
A24: 1,992 | B24: Pesos | C24: $ 3.6881 | D24: $ 3.7675 | E24: $ 3.8466 | F24: $ 3.8961 | G24: $ 3.9223 | H24: $ 3.9531 | I24: $ 4.0214 | J24: $ 4.0816 | K24: $ 4.1238 | L24: $ 4.1760 | M24: $ 4.1953 | N24: $ 4.2072 | P24: 17 | Q24: 3,434.5846 | R24: 3,527.1374 | S24: 3,615.7509 | T24: 3,715.8160 | U24: 3,786.0700 | V24: 3,880.1519 | W24: 3,966.6473 | X24: 4,026.1186 | Y24: 4,104.5733 | AI24: 21 | AJ24: 1995
A25: 1,993 | B25: Pesos | C25: $ 4.2422 | D25: $ 4.2732 | E25: $ 4.3053 | F25: $ 4.3503 | G25: $ 4.4063 | H25: $ 4.4380 | I25: $ 4.4522 | J25: $ 4.4530 | K25: =303661.1/10000*0.1478507787 -> $ 4.4897 | L25: $ 4.5150 | M25: $ 4.5176 | N25: $ 4.5170 | P25: 18 | Q25: 3,438.0125 | R25: 3,529.7014 | S25: =IF(S$40=0,"",S24*S$39) -> 3,619.3894 | T25: 3,718.6531 | U25: 3,787.9741 | V25: 3,884.2776 | W25: 3,968.4249 | X25: 4,028.1727 | Y25: 4,107.5625 | AI25: 22 | AJ25: 1996
A26: 1,994 | B26: Pesos | C26: $ 4.5216 | D26: $ 4.5214 | E26: $ 4.5277 | F26: $ 4.5387 | G26: $ 4.5545 | H26: $ 4.5721 | I26: $ 4.6143 | J26: $ 4.6238 | K26: $ 4.6555 | L26: $ 4.6704 | M26: $ 4.6809 | N26: $ 4.6911 | P26: 19 | Q26: 3,441.4439 | R26: 3,532.2674 | S26: 3,623.0316 | T26: 3,721.4924 | U26: 3,789.8792 | V26: 3,888.4078 | W26: 3,970.2034 | X26: 4,030.2278 | Y26: 4,110.5540 | AI26: 23 | AJ26: 1997
A27: 1,995 | B27: Pesos | C27: $ 4.7496 | D27: $ 4.7495 | E27: $ 4.7281 | F27: $ 4.7497 | G27: $ 4.7507 | H27: $ 4.7409 | I27: $ 4.7602 | J27: $ 4.7486 | K27: $ 4.7564 | L27: $ 4.7726 | M27: $ 4.7617 | N27: $ 4.7665 | P27: 20 | Q27: 3,444.8787 | R27: 3,534.8352 | S27: 3,626.6775 | T27: 3,724.3339 | U27: 3,791.7852 | V27: 3,892.5423 | W27: 3,971.9826 | X27: 4,032.2840 | Y27: 4,113.5476 | AI27: 24 | AJ27: 1998
A28: 1,996 | B28: Pesos | C28: $ 4.7808 | D28: $ 4.7653 | E28: $ 4.7396 | F28: $ 4.7397 | G28: $ 4.7354 | H28: $ 4.7356 | I28: $ 4.7612 | J28: $ 4.7575 | K28: $ 4.7662 | L28: $ 4.7902 | M28: $ 4.7828 | N28: $ 4.7691 | P28: 21 | Q28: 3,448.3169 | R28: 3,537.4049 | S28: 3,630.3270 | T28: 3,727.1776 | U28: 3,793.6922 | V28: 3,896.6812 | W28: 3,973.7626 | X28: 4,034.3412 | Y28: 4,116.5434 | AI28: 25 | AJ28: 1999
A29: 1,997 | B29: Pesos | C29: $ 4.7914 | D29: $ 4.8098 | E29: $ 4.7861 | F29: $ 4.7703 | G29: $ 4.7663 | H29: $ 4.7772 | I29: $ 4.7878 | J29: $ 4.7957 | K29: $ 4.7934 | L29: $ 4.7859 | M29: $ 4.7766 | N29: $ 4.7848 | P29: 22 | Q29: 3,451.7585 | R29: 3,539.9764 | S29: 3,633.9802 | T29: 3,730.0234 | U29: 3,795.6002 | V29: 3,900.8246 | W29: 3,975.5434 | X29: 4,036.3995 | Y29: 4,119.5413 | AI29: 26 | AJ29: 2000
A30: 1,998 | B30: Pesos | C30: $ 4.8149 | D30: $ 4.8316 | E30: $ 4.8256 | F30: $ 4.8261 | G30: $ 4.8226 | H30: $ 4.8318 | I30: $ 4.8469 | J30: $ 4.8479 | K30: $ 4.8464 | L30: $ 4.8287 | M30: $ 4.8172 | N30: $ 4.8166 | P30: 23 | Q30: 3,455.2036 | R30: 3,542.5498 | S30: 3,637.6370 | T30: 3,732.8714 | U30: 3,797.5091 | V30: 3,904.9723 | W30: 3,977.3250 | X30: 4,038.4588 | Y30: 4,122.5415 | AI30: 27 | AJ30: 2001
A31: 1,999 | B31: Pesos | C31: $ 4.8393 | D31: $ 4.8315 | E31: $ 4.7952 | F31: $ 4.7905 | G31: $ 4.7669 | H31: $ 4.7667 | I31: $ 4.7755 | J31: $ 4.7575 | K31: $ 4.7481 | L31: $ 4.7473 | M31: $ 4.7323 | N31: $ 4.7294 | P31: 24 | Q31: 3,458.6521 | R31: 3,545.1251 | S31: 3,641.2976 | T31: 3,735.7216 | U31: 3,799.4190 | V31: 3,909.1244 | W31: 3,979.1074 | X31: 4,040.5192 | Y31: 4,125.5438 | AI31: 28 | AJ31: 2002
A32: 2,000 | B32: Pesos | C32: $ 4.7693 | D32: $ 4.7695 | E32: $ 4.7443 | F32: $ 4.7390 | G32: $ 4.7203 | H32: $ 4.7119 | I32: $ 4.7323 | J32: $ 4.6982 | K32: $ 4.6910 | L32: $ 4.6996 | M32: $ 4.6982 | N32: $ 4.6947 | P32: 25 | Q32: 3,462.1041 | R32: 3,547.7023 | S32: 3,644.9618 | T32: 3,738.5739 | U32: 3,801.3298 | V32: 3,913.2810 | W32: 3,980.8907 | X32: 4,042.5806 | Y32: 4,128.5483 | AI32: 29 | AJ32: 2003
A33: 2,001 | B33: Pesos | C33: $ 4.6756 | D33: $ 4.6982 | E33: $ 4.6968 | F33: $ 4.7261 | G33: $ 4.7280 | H33: $ 4.6972 | I33: $ 4.6968 | J33: $ 4.6816 | K33: $ 4.6612 | L33: $ 4.6612 | M33: $ 4.6982 | N33: $ 4.6455 | P33: 26 | Q33: 3,465.5595 | R33: 3,550.2813 | S33: 3,648.6297 | T33: 3,741.4285 | U33: 3,803.2416 | V33: 3,917.4420 | W33: 3,982.6747 | X33: 4,044.6431 | Y33: 4,131.5550 | AI33: 30 | AJ33: 2004
A34: 2,002 | B34: Pesos | C34: $ 4.7280 | D34: $ 4.8765 | E34: $ 5.0911 | F34: $ 5.5964 | G34: $ 5.8209 | H34: $ 6.0316 | I34: $ 6.2239 | J34: $ 6.3697 | K34: $ 6.4555 | L34: $ 6.4697 | M34: $ 6.5020 | N34: $ 6.5151 | P34: 27 | Q34: 3,469.0183 | R34: 3,552.8622 | S34: 3,652.3013 | T34: 3,744.2852 | U34: 3,805.1544 | V34: 3,921.6074 | W34: 3,984.4595 | X34: 4,046.7066 | Y34: 4,134.5639 | AI34: 31 | AJ34: 2005
A35: 2,003 | B35: Pesos | C35: $ 6.6009 | D35: $ 6.6383 | E35: $ 6.6771 | F35: $ 6.6809 | G35: $ 6.6548 | H35: $ 6.6492 | I35: $ 6.6790 | J35: $ 6.6804 | K35: $ 6.6833 | L35: $ 6.7226 | M35: $ 6.7391 | N35: $ 6.7534 | P35: 28 | Q35: 3,472.4807 | R35: 3,555.4450 | S35: 3,655.9766 | T35: 3,747.1441 | U35: 3,807.0681 | V35: 3,925.7772 | W35: 3,986.2451 | X35: 4,048.7712 | Y35: 4,137.5750 | AI35: 32 | AJ35: 2006
A36: 2,004 | B36: Pesos | C36: $ 6.7818 | D36: $ 6.7884 | E36: $ 6.8291 | F36: $ 6.8874 | G36: $ 6.9381 | H36: $ 6.9769 | I36: $ 7.0091 | J36: $ 7.0332 | K36: $ 7.0778 | L36: $ 7.1057 | M36: $ 7.1057 | N36: $ 7.1654 | P36: 29 | Q36: 3,475.9464 | R36: =IF(O41=0,R35*R$39,"") ->  | S36: 3,659.6556 | T36: 3,750.0051 | U36: 3,808.9828 | V36: 3,929.9515 | W36: 3,988.0315 | X36: 4,050.8368 | Y36: 4,140.5883 | AI36: 33 | AJ36: 2007
A37: 2,005 | B37: Pesos | C37: $ 7.2715 | D37: $ 7.3406 | E37: $ 7.4538 | F37: $ 7.5376 | G37: $ 7.5352 | H37: $ 7.5352 | I37: $ 7.6806 | J37: $ 7.7143 | K37: $ 7.8042 | L37: $ 7.8649 | M37: $ 7.9601 | N37: $ 8.0486 | P37: 30 | Q37: 3,479.4156 | S37: 3,663.3383 | T37: 3,752.8684 | U37: 3,810.8984 | V37: 3,934.1302 | W37: 3,989.8187 | X37: 4,052.9035 | Y37: 4,143.6038 | AI37: 34 | AJ37: 2008
A38: 2,006 | B38: Pesos | C38: $ 8.1514 | D38: $ 8.1836 | E38: $ 8.2821 | F38: $ 8.3626 | G38: $ 8.4019 | H38: $ 8.4426 | I38: $ 8.4947 | J38: $ 8.5426 | K38: $ 8.6193 | L38: $ 8.6932 | M38: $ 8.7547 | N38: $ 8.8404 | P38: 31 | Q38: 3,482.8883 | S38: =IF(S$40=0,"",S37*S$39) -> 3,667.0247 | U38: =IF(U$40=0,"",U37*U$39) -> 3,812.8150 | W38: =IF(W$40=0,"",W37*W$39) -> 3,991.6067 | X38: =IF(X$40=0,"",X37*X$39) -> 4,054.9712 | Z38: =IF(Z$40=0,"",Z37*Z$39) ->  | AB38: =IF(AB$40=0,"",AB37*AB$39) ->  | AI38: 35 | AJ38: 2009
A39: 2,007 | B39: Pesos | C39: $ 8.9418 | D39: $ 8.9688 | E39: $ 9.0375 | F39: $ 9.1047 | G39: $ 9.1431 | H39: $ 9.1829 | I39: $ 9.2288 | J39: $ 9.2828 | K39: $ 9.3571 | L39: $ 9.4211 | M39: $ 9.5016 | N39: $ 9.5897 | Q39: =(Q40/Q41)^(1/31) -> 1.0010 | R39: =(R40/R41)^(1/IF(O41=0,29,28)) -> 1.0007 | S39: =(S40/S41)^(1/31) -> 1.0010 | T39: =(T40/T41)^(1/30) -> 1.0008 | U39: =(U40/U41)^(1/31) -> 1.0005 | V39: =(V40/V41)^(1/30) -> 1.0011 | W39: =(W40/W41)^(1/31) -> 1.0004 | X39: 1.0005 | Y39: =(Y40/Y41)^(1/30) -> 1.0007 | Z39: =(Z40/Z41)^(1/31) -> 0.0000 | AA39: =(AA40/AA41)^(1/30) ->  | AB39: =(AB40/AB41)^(1/31) ->  | AI39: 36 | AJ39: 2010
A40: 2,008 | B40: Pesos | C40: $ 9.6787 | D40: $ 9.7242 | E40: $ 9.8340 | F40: $ 9.9155 | G40: $ 9.9710 | H40: $ 10.0345 | I40: $ 10.0712 | J40: $ 10.1188 | K40: $ 10.1832 | L40: $ 10.2139 | M40: $ 10.2487 | N40: $ 10.2834 | O40: =AJ2 -> 2,025 | Q40: =LOOKUP($AJ$2,$A$7:$A$92,C7:C92) -> 3,482.8883 | R40: =LOOKUP($AJ$2,$A$7:$A$92,D7:D92) -> 3,554.4820 | S40: 3,667.0548 | T40: 3,751.9891 | U40: 3,810.9290 | V40: 3,934.3866 | W40: 3,989.4138 | X40: 4,052.9949 | Y40: 4,142.4870 | Z40: 0.0000 | AA40: 0.0000 | AB40: 0.0000 | AI40: 37 | AJ40: 2011
A41: 2,009 | B41: Pesos | C41: $ 10.3379 | D41: $ 10.3825 | E41: $ 10.4489 | F41: $ 10.4837 | G41: $ 10.5184 | H41: $ 10.5630 | I41: $ 10.6284 | J41: $ 10.7167 | K41: $ 10.7960 | L41: $ 10.8823 | M41: $ 10.9725 | N41: $ 11.0746 | O41: =MOD(O40,4) -> 1 | Q41: =IF(O40=1975,12.22,LOOKUP($AJ$2-1,$A$7:$A$92,$N$7:$N$92)) -> 3,376.8297 | R41: =Q38 -> 3,482.8883 | S41: =R40 -> 3,554.4820 | T41: =S40 -> 3,667.0548 | U41: 3,751.9891 | V41: 3,810.9290 | W41: 3,934.3866 | X41: 3,989.4138 | Y41: 4,052.9949 | Z41: 4,142.4870 | AA41: 0.0000 | AB41: 0.0000 | AI41: 38 | AJ41: 2012
A42: 2,010 | B42: Pesos | C42: $ 11.1896 | D42: $ 11.3285 | E42: $ 11.4583 | F42: $ 11.5535 | G42: $ 11.6398 | H42: $ 11.7251 | I42: $ 11.8193 | J42: $ 11.9065 | K42: $ 11.9928 | L42: $ 12.1822 | M42: $ 12.1822 | N42: $ 12.2843 | AI42: 39 | AJ42: 2013
A43: 2,011 | B43: Pesos | C43: $ 12.3735 | D43: $ 12.4648 | E43: $ 12.5699 | F43: $ 12.6750 | G43: $ 12.7682 | H43: $ 12.8594 | I43: $ 12.9615 | J43: $ 13.0696 | K43: $ 13.1787 | L43: $ 13.2620 | M43: $ 13.3403 | N43: $ 13.4523 | AI43: 40 | AJ43: 2014
A44: 2,012 | B44: Pesos | C44: $ 13.5753 | D44: $ 13.6754 | E44: $ 13.8034 | F44: $ 13.9184 | G44: $ 14.0314 | H44: $ 14.1326 | I44: $ 14.2446 | J44: $ 14.3715 | K44: $ 14.4984 | L44: $ 14.6204 | M44: $ 14.7572 | N44: $ 14.9109 | AI44: 41 | AJ44: 2015
A45: 2,013 | B45: Pesos | C45: $ 15.0805 | D45: $ 15.2454 | E45: $ 15.4813 | F45: $ 15.7918 | G45: $ 16.0277 | H45: $ 16.3299 | I45: $ 16.7307 | J45: $ 17.0785 | K45: $ 17.4444 | L45: $ 17.8272 | M45: $ 18.2509 | N45: $ 18.6637 | AI45: 42 | AJ45: 2016
A46: 2,014 | B46: Pesos | C46: $ 19.5592 | D46: $ 20.4150 | E46: $ 21.1601 | F46: $ 21.8209 | G46: $ 22.3649 | H46: $ 22.8873 | I46: $ 23.3965 | J46: $ 23.9285 | K46: $ 24.4665 | L46: $ 24.9383 | M46: $ 25.3933 | N46: $ 25.7628 | AI46: 43 | AJ46: 2017
A47: 2,015 | B47: Pesos | C47: $ 26.2672 | D47: $ 26.6487 | E47: $ 27.0916 | F47: $ 27.7332 | G47: $ 28.3471 | H47: $ 28.7298 | I47: $ 29.3160 | J47: $ 29.8528 | K47: $ 30.3475 | L47: $ 30.8639 | M47: $ 31.4669 | N47: $ 32.6994 | AI47: 44 | AJ47: 2018
A48: 2,016 | B48: Pesos | C48: $ 34.0523 | D48: $ 35.4040 | E48: $ 36.5788 | F48: $ 38.9728 | G48: $ 40.9348 | H48: $ 42.2540 | I48: $ 43.1651 | J48: $ 42.8377 | K48: $ 43.4131 | L48: $ 44.6721 | M48: $ 45.5568 | N48: $ 46.1225 | AI48: 45 | AJ48: 2019
A49: 2,017 | B49: Pesos | C49: $ 46.9939 | D49: $ 48.0062 | E49: $ 49.3928 | F49: $ 50.4376 | G49: $ 51.3499 | H49: $ 52.1347 | I49: $ 53.0543 | J49: $ 53.9185 | K49: $ 54.7707 | L49: $ 55.6108 | M49: $ 56.3138 | N49: $ 58.1722 | AI49: 46 | AJ49: 2020
A50: 2,018 | B50: Pesos | C50: $ 59.1122 | D50: $ 60.6445 | E50: $ 61.9372 | F50: $ 63.8173 | G50: $ 65.3014 | H50: $ 67.6894 | I50: $ 69.5105 | J50: $ 72.0490 | K50: $ 76.3809 | L50: $ 80.4047 | M50: $ 82.6495 | N50: $ 84.7378 | AI50: 47 | AJ50: 2021
A51: 2,019 | B51: Pesos | C51: $ 87.8481 | D51: $ 90.8078 | E51: $ 94.4272 | F51: $ 97.9190 | G51: $ 101.0581 | H51: $ 103.7843 | I51: $ 106.0761 | J51: $ 109.6762 | K51: $ 115.1901 | L51: $ 118.3749 | M51: $ 122.8904 | N51: $ 127.4059 | AI51: 48 | AJ51: 2022
A52: 2,020 | B52: Pesos | C52: $ 130.5089 | D52: $ 132.9198 | E52: $ 136.5692 | F52: $ 139.2557 | G52: $ 140.5930 | H52: $ 142.5850 | I52: $ 144.8852 | J52: $ 148.3770 | K52: $ 151.7014 | L52: $ 155.4628 | M52: $ 160.2052 | N52: $ 166.2258 | AI52: 49 | AJ52: 2023
A53: 2,021 | B53: Pesos | C53: $ 172.6015 | D53: $ 183.0865 | E53: $ 184.4237 | F53: $ 190.6430 | G53: $ 198.7616 | H53: $ 205.1409 | I53: $ 211.1856 | J53: $ 217.3446 | K53: $ 224.7037 | L53: $ 232.9993 | M53: $ 238.8454 | N53: $ 248.0171 | AI53: 50 | AJ53: 2024
A54: 2,022 | B54: Pesos | C54: $ 258.0026 | D54: $ 268.5345 | E54: $ 284.3780 | F54: $ 299.4500 | G54: $ 315.9198 | H54: $ 332.0940 | I54: $ 357.5465 | J54: $ 381.8287 | K54: $ 401.1166 | L54: $ 429.0349 | M54: $ 453.8813 | N54: $ 479.9816 | AI54: 51 | AJ54: 2025
A55: 2,023 | B55: Pesos | C55: $ 512.8316 | D55: $ 543.5919 | E55: $ 582.2192 | F55: $ 627.4023 | G55: $ 674.7291 | H55: $ 722.9716 | I55: $ 775.9176 | J55: $ 859.7073 | K55: $ 962.4984 | L55: $ 1,052.7189 | M55: $ 1,177.9455 | N55: $ 1,370.2703 | AI55: 52 | AJ55: 2026
A56: 2,024 | B56: Pesos | C56: $ 1,736.1475 | D56: $ 1,981.2935 | E56: $ 2,242.8242 | F56: $ 2,462.4282 | G56: $ 2,570.1934 | H56: $ 2,693.5627 | I56: $ 2,831.5937 | J56: $ 2,950.5206 | K56: =N4*1474.29 -> $ 3,068.3108 | L56: $ 3,167.6887 | M56: $ 3,268.0448 | N56: $ 3,376.8297 | AI56: 53 | AJ56: 2027
A57: 2,025 | B57: Pesos | C57: $ 3,482.8883 | D57: $ 3,554.4820 | E57: $ 3,667.0548 | F57: $ 3,751.9891 | G57: $ 3,810.9290 | H57: $ 3,934.3866 | I57: $ 3,989.4138 | J57: $ 4,052.9949 | K57: $ 4,142.4870 | AI57: 54 | AJ57: 2028
A58: 2,026 | B58: Pesos | AI58: 55 | AJ58: 2029
A59: 2,027 | B59: Pesos | AI59: 56 | AJ59: 2030
A60: 2,028 | B60: Pesos | AI60: 57 | AJ60: 2031
A61: 2,029 | B61: Pesos | AI61: 58 | AJ61: 2032
A62: 2,030 | B62: Pesos | AI62: 59 | AJ62: 2033
A63: 2,031 | B63: Pesos | AI63: 60 | AJ63: 2034
A64: 2,032 | B64: Pesos | AI64: 61 | AJ64: 2035
A65: 2,033 | B65: Pesos | AI65: 62 | AJ65: 2036
A66: 2,034 | B66: Pesos | AI66: 63 | AJ66: 2037
A67: 2,035 | B67: Pesos | AI67: 64 | AJ67: 2038
A68: 2,036 | B68: Pesos | AI68: 65 | AJ68: 2039
A69: 2,037 | B69: Pesos | AI69: 66 | AJ69: 2040
A70: 2,038 | B70: Pesos | AI70: 67 | AJ70: 2041
A71: 2,039 | B71: Pesos | AI71: 68 | AJ71: 2042
A72: 2,040 | B72: Pesos | AI72: 69 | AJ72: 2043
A73: 2,041 | B73: Pesos | AI73: 70 | AJ73: 2044
A74: 2,042 | B74: Pesos | AI74: 71 | AJ74: 2045
A75: 2,043 | B75: Pesos | AI75: 72 | AJ75: 2046
A76: 2,044 | B76: Pesos | AI76: 73 | AJ76: 2047
A77: 2,045 | B77: Pesos | AI77: 74 | AJ77: 2048
A78: 2,046 | B78: Pesos | AI78: 75 | AJ78: 2049
A79: 2,047 | B79: Pesos | AI79: 76 | AJ79: 2050
A80: 2,048 | B80: Pesos | AI80: 77 | AJ80: 2051
A81: 2,049 | B81: Pesos | AI81: 78 | AJ81: 2052
A82: 2,050 | B82: Pesos | AI82: 79 | AJ82: 2053
A83: 2,051 | B83: Pesos | AI83: 80 | AJ83: 2054
A84: 2,052 | B84: Pesos | AI84: 81 | AJ84: 2055
A85: 2,053 | B85: Pesos | AI85: 82 | AJ85: 2056
A86: 2,054 | B86: Pesos | AI86: 83 | AJ86: 2057
A87: 2,055 | B87: Pesos | AI87: 84 | AJ87: 2058
A88: 2,056 | B88: Pesos | AI88: 85 | AJ88: 2059
A89: 2,057 | B89: Pesos | AI89: 86 | AJ89: 2060
A90: 2,058 | B90: Pesos
A91: 2,059 | B91: Pesos
A92: 2,060 | B92: Pesos
